Workbook

Sheet INGRESO DE DATOS
A11: Cotización de Seguro Médico - Bupa Global Health Plans
A13: 1. INGRESE LOS DATOS DEL PROPUESTO ASEGURADO : | J13: Diligenciar, solo si aplica otros dependientes, incluir edad. Edad máxima para otros dependientes hasta 24 años.
B15: Nombre del asegurado titular : | D15: JUAN VIDAL | J15: Otros dependientes: | K15: ID | L15: Edad
K16: 1 | M16: =IF(ISBLANK(L16),TRUE,AND(L16 >= 5,L16 <= 50,E25)) -> TRUE
B17: Número de adultos en la póliza : | D17: 1 | F17: Número de hijos en la póliza : | H17: 0 | K17: 2 | M17: =IF(ISBLANK(L17),TRUE,AND(L17 >= 5,L17 <= 50,E26)) -> TRUE
K18: 3 | M18: =IF(ISBLANK(L18),TRUE,AND(L18 >= 5,L18 <= 50,E27)) -> TRUE
B19: Edad del asegurado titular : | D19: 18 | E19: =AND(D19 >= 5,D19 <= 50,E25) -> TRUE | F19: Edad del (de la) cónyuge : | H19: 0 | I19: =IF(D17>1,AND(H19 >= 5,H19 <= 50,E25),TRUE) -> TRUE | K19: 4 | M19: =IF(ISBLANK(L19),TRUE,AND(L19 >= 5,L19 <= 50,E28)) -> TRUE
K20: 5 | M20: =IF(ISBLANK(L20),TRUE,AND(L20 >= 5,L20 <= 50,E29)) -> TRUE
C21: Aplica descuento especial del 10%: | E21: TRUE | F21: *Descuento especial aplica para todos los productos globales a excepción de Select PE. *Descuento por pago fraccionado aplica para todos los productos globales. *Descuento especial 5%, válido solo para asegurados titular y cónyuge entre 5 a 50 años(Si alguno de los integrantes no cumple la condición, no aplica descuento adicional)
C23: Aplica descuento especial del 5%: | E23: TRUE
E25: TRUE
D26: =1-(IF(E21,0.1,0)+IF(AND(E23,E19,I19,M16,M17,M18,M19,M20),0.05,0)) -> 0.85 | E26: =1-IF(E21,0.1,0) -> 0.9
A27: 2. INGRESE EL NOMBRE DE LA AGENCIA ASESORA :
B29: Agencia / Agente : | D29: Nombre del Agente
A31: 3. ESCOJA EL PRODUCTO PARA VISUALIZAR LA COTIZACION RESPECTIVA :

Sheet Global Major Medical Health Pla
M28: FALSE
B29: Nombre del asegurado titular : | C29: =+'INGRESO DE DATOS'!$D$15 -> JUAN VIDAL | K29: Deducibles | M29: PLAN 1 | N29: PLAN 2
K30: Dentro del país de residencia | M30: 10000 | N30: 20000
B31: Agencia / Agente : | C31: =+'INGRESO DE DATOS'!$D$29 -> Nombre del Agente | K31: Fuera del país de residencia | M31: 10000 | N31: 20000
D33: Número de adultos en la póliza : | F33: =+'INGRESO DE DATOS'!$D$17 -> 1 | H33: Edad del asegurado titular : | I33: =+'INGRESO DE DATOS'!$D$19 -> 18 | K33: TARIFAS ANUALES
K34: Prima del asegurado titular : | M34: =VLOOKUP($I$33,Tablas!$A$905:$G$971,3,TRUE)*'INGRESO DE DATOS'!$D$26+(Tablas!$Q$2) -> 29471.875 | N34: =VLOOKUP($I$33,Tablas!$A$905:$G$971,4,TRUE)*'INGRESO DE DATOS'!$D$26+(Tablas!$Q$2) -> 21683.75
D35: Número de hijos en la póliza : | F35: =+'INGRESO DE DATOS'!$H$17 -> 0 | H35: Edad del (de la) cónyuge : | I35: =+'INGRESO DE DATOS'!$H$19 -> 0 | K35: Prima del (de la) cónyuge: | M35: =(IF($F$33=1,0,(VLOOKUP($I$35,Tablas!$A$905:$G$971,3,TRUE))))*'INGRESO DE DATOS'!$D$26+(IF($F$33=1,0,(Tablas!$Q$2))) -> 0 | N35: =(IF($F$33=1,0,(VLOOKUP($I$35,Tablas!$A$905:$G$971,4,TRUE))))*'INGRESO DE DATOS'!$D$26+(IF($F$33=1,0,(Tablas!$Q$2))) -> 0
K36: Prima del (de los) Hijo (s) : | M36: =(IF($F$35=0,0,(VLOOKUP($F$35,Tablas!$A$972:$G$974,3,TRUE))))*'INGRESO DE DATOS'!$D$26 -> 0 | N36: =(IF($F$35=0,0,(VLOOKUP($F$35,Tablas!$A$972:$G$974,4,TRUE))))*'INGRESO DE DATOS'!$D$26 -> 0
C37: FECHA DE COTIZACION : | E37: =NOW() -> 2024-07-10T10:56:45.220 | K37: Total otros dependientes | M37: =Tablas!Q911*'INGRESO DE DATOS'!$D$26 -> 0 | N37: =Tablas!R911*'INGRESO DE DATOS'!$D$26 -> 0
K38: TOTAL PRIMA NETA : | M38: =SUM(M34:M37) -> 29471.875 | N38: =SUM(N34:N37) -> 21683.75
K39: Costo administrativo anual : | M39: 937.5 | N39: 937.5
K40: IVA (16%) : | M40: =+M38*16% -> 4715.5 | N40: =+N38*16% -> 3469.4
K41: =IF('INGRESO DE DATOS'!$D$26=0.95,"Costo total, (-5% de descuento)",IF('INGRESO DE DATOS'!$D$26=0.85,"Costo total, (-15% de descuento)",IF('INGRESO DE DATOS'!$D$26=0.9,"Costo total, (-10% de descuento)","Gran total anual"))) -> Costo total, (-15% de descuento) | M41: =SUM(M38:M40) + M39*0.16 -> 35274.875 | N41: =SUM(N38:N40) + N39*0.16 -> 26240.65
K43: TARIFAS SEMESTRALES
K44: Prima del asegurado titular : | M44: =M34*(1+Tablas!$K$4) -> 29471.875 | N44: =N34*(1+Tablas!$K$4) -> 21683.75
K45: Prima del (de la) cónyuge: | M45: =M35*(1+Tablas!$K$4) -> 0 | N45: =N35*(1+Tablas!$K$4) -> 0
K46: Prima del (de los) Hijo (s) : | M46: =M36*(1+Tablas!$K$4) -> 0 | N46: =N36*(1+Tablas!$K$4) -> 0
K47: =K37 -> Total otros dependientes | M47: =M37*(1+Tablas!$K$4) -> 0 | N47: =N37*(1+Tablas!$K$4) -> 0
K48: TOTAL PRIMA NETA : | M48: =SUM(M44:M47) -> 29471.875 | N48: =SUM(N44:N47) -> 21683.75
K49: Costo administrativo anual : | M49: 937.5 | N49: 937.5
K50: IVA (16%) : | M50: =SUM(M48:M49)*16% -> 4865.5 | N50: =SUM(N48:N49)*16% -> 3619.4
K51: TOTAL primera cuota : | M51: =((M48/2)+M49)*1.16 -> 18181.1875 | N51: =((N48/2)+N49)*1.16 -> 13664.075
K52: Valor segunda cuota : | M52: =M48/2*1.16 -> 17093.6875 | N52: =N48/2*1.16 -> 12576.575
K53: =K41 -> Costo total, (-15% de descuento) | M53: =M51+M52 -> 35274.875 | N53: =N51+N52 -> 26240.65
K55: TARIFAS TRIMESTRALES
K56: Prima del asegurado titular : | M56: =M34*(1+Tablas!$K$3) -> 29471.875 | N56: =N34*(1+Tablas!$K$3) -> 21683.75
K57: Prima del (de la) cónyuge: | M57: =M35*(1+Tablas!$K$3) -> 0 | N57: =N35*(1+Tablas!$K$3) -> 0
K58: Prima del (de los) Hijo (s) : | M58: =M36*(1+Tablas!$K$3) -> 0 | N58: =N36*(1+Tablas!$K$3) -> 0
K59: =K47 -> Total otros dependientes | M59: =M37*(1+Tablas!$K$3) -> 0 | N59: =N37*(1+Tablas!$K$3) -> 0
K60: TOTAL PRIMA NETA : | M60: =SUM(M56:M59) -> 29471.875 | N60: =SUM(N56:N59) -> 21683.75
K61: Costo administrativo anual : | M61: 937.5 | N61: 937.5
K62: IVA (16%) : | M62: =SUM(M60:M61)*16% -> 4865.5 | N62: =SUM(N60:N61)*16% -> 3619.4
K63: TOTAL primera cuota : | M63: =((M60/4)+M61)*1.16 -> 9634.34375 | N63: =((N60/4)+N61)*1.16 -> 7375.7875
K64: Valor cuota trimestral 2 a 4: | M64: =M60/4*1.16 -> 8546.84375 | N64: =N60/4*1.16 -> 6288.2875
K65: =K53 -> Costo total, (-15% de descuento) | M65: =M63+(M64*3) -> 35274.875 | N65: =N63+(N64*3) -> 26240.65
K67: TARIFAS MENSUALES
K68: Prima del asegurado titular : | M68: =M34*(1+Tablas!$K$2) -> 29471.875 | N68: =N34*(1+Tablas!$K$2) -> 21683.75
B69: Tarifas validas a partir del 1 de marzo al 31 de diciembre del 2024. | K69: Prima del (de la) cónyuge: | M69: =M35*(1+Tablas!$K$2) -> 0 | N69: =N35*(1+Tablas!$K$2) -> 0
B70: Promociones válidas al 31 de diciembre de 2024. | K70: Prima del (de los) Hijo (s) : | M70: =M36*(1+Tablas!$K$2) -> 0 | N70: =N36*(1+Tablas!$K$2) -> 0
B71: El 10% de descuento en productos Globales sobre prima neta será aplicable durante toda la vida de la póliza, siempre y cuando el asegurado no haga cambios en el plan y deducibles contratados. | K71: =K59 -> Total otros dependientes | M71: =M37*(1+Tablas!$K$2) -> 0 | N71: =N37*(1+Tablas!$K$2) -> 0
B72: 6 meses sin intereses sin cargo al agente para modalidad de pago anual durante el primer año póliza con tarjetas de crédito participantes: Afirme, Azteca, Bajío, Banjercito, Banorte, Banregio, BBVA, Citibanamex, Famsa, HSBC, Inbursa, Invex, IXE, Liverpool, Mifel, Multiva, Santander, Scotiabank, Sociedad de Facilidades Multirotativas y American Express. Promoción válida sólo para tarjetas emitidas en la República Mexicana. | K72: TOTAL PRIMA NETA : | M72: =SUM(M68:M71) -> 29471.875 | N72: =SUM(N68:N71) -> 21683.75
B73: En caso de que el asegurado elija la promoción “Sin costo por pago fraccionado” no podrá optar por la promoción a meses sin intereses. | K73: Costo administrativo anual : | M73: 937.5 | N73: 937.5
B74: Las pólizas contratadas cuentan con limitaciones y exclusiones las cuáles pueden ser consultadas en www.bupasalud.com.mx Para más información, llámanos al 55 5202-1701 ext 4 o envíanos un correo a: ventasdirectas@bupa.com.mx | K74: IVA (16%) : | M74: =SUM(M72:M73)*16% -> 4865.5 | N74: =SUM(N72:N73)*16% -> 3619.4
B75: La presente cotización es de carácter informativo, no constituye una solicitud de seguro y/o el monto de la prima definitiva y/o las condiciones de la misma y/o una oferta de aseguramiento en términos del artículo 5to de la Ley Sobre el Contrato de Seguro. La emisión de la póliza asícomo posibles cambios en la tarifa están sujetos a valoración del riesgo de acuerdo con las políticas de Suscripción de Bupa México y es susceptible de modificaciones, por lo que Bupa podrá aceptar o negar el aseguramiento del riesgo propuesto. | K75: TOTAL primera cuota : | M75: =((M72/12)+M73)*1.16 -> 3936.447917 | N75: =((N72/12)+N73)*1.16 -> 3183.595833
K76: Valor cuota mensual 2 a 12 : | M76: =M72/12*1.16 -> 2848.947917 | N76: =N72/12*1.16 -> 2096.095833
K77: =K65 -> Costo total, (-15% de descuento) | M77: =M75+(M76*11) -> 35274.875 | N77: =N75+(N76*11) -> 26240.65

Sheet Global Select Health Plan
M32: FALSE
B33: Nombre del asegurado titular : | C33: =+'INGRESO DE DATOS'!$D$15 -> JUAN VIDAL | K33: Deducibles | M33: PLAN A | N33: PLAN 1 | O33: PLAN 2 | P33: PLAN 3 | Q33: PLAN 4
K34: Dentro del país de residencia | M34: 2000 | N34: 3500 | O34: 5000 | P34: 10000 | Q34: 20000
B35: Agencia / Agente : | C35: =+'INGRESO DE DATOS'!$D$29 -> Nombre del Agente | K35: Fuera del país de residencia | M35: 2000 | N35: 3500 | O35: 5000 | P35: 10000 | Q35: 20000
K37: TARIFAS ANUALES
B38: Número de adultos en la póliza : | C38: =+'INGRESO DE DATOS'!$D$17 -> 1 | F38: Edad del asegurado titular : | G38: =+'INGRESO DE DATOS'!$D$19 -> 18 | H38: =VLOOKUP($C$38,Tablas!A1503:B1504,2,0) -> 0 | K38: Prima del asegurado titular : | M38: =(VLOOKUP($G$38,Tablas!$A$305:$G$371,3,TRUE))*'INGRESO DE DATOS'!$D$26+(Tablas!$Q$2) -> 43698.75 | N38: =(VLOOKUP($G$38,Tablas!$A$305:$G$371,4,TRUE))*'INGRESO DE DATOS'!$D$26+(Tablas!$Q$2) -> 37005 | O38: =(VLOOKUP($G$38,Tablas!$A$305:$G$371,5,TRUE))*'INGRESO DE DATOS'!$D$26+(Tablas!$Q$2) -> 32786.875 | P38: =(VLOOKUP($G$38,Tablas!$A$305:$G$371,6,TRUE))*'INGRESO DE DATOS'!$D$26+(Tablas!$Q$2) -> 22076.875 | Q38: =(VLOOKUP($G$38,Tablas!$A$305:$G$371,7,TRUE))*'INGRESO DE DATOS'!$D$26+(Tablas!$Q$2) -> 17518.75
K39: Prima del (de la) cónyuge: | M39: =(IF($C$38=1,0,(VLOOKUP($G$40,Tablas!$A$305:$G$371,3,TRUE))))*'INGRESO DE DATOS'!$D$26+(IF($C$38=1,0,(Tablas!$Q$2))) -> 0 | N39: =(IF($C$38=1,0,(VLOOKUP($G$40,Tablas!$A$305:$G$371,4,TRUE))))*'INGRESO DE DATOS'!$D$26+(IF($C$38=1,0,(Tablas!$Q$2))) -> 0 | O39: =(IF($C$38=1,0,(VLOOKUP($G$40,Tablas!$A$305:$G$371,5,TRUE))))*'INGRESO DE DATOS'!$D$26+(IF($C$38=1,0,(Tablas!$Q$2))) -> 0 | P39: =(IF($C$38=1,0,(VLOOKUP($G$40,Tablas!$A$305:$G$371,6,TRUE))))*'INGRESO DE DATOS'!$D$26+(IF($C$38=1,0,(Tablas!$Q$2))) -> 0 | Q39: =(IF($C$38=1,0,(VLOOKUP($G$40,Tablas!$A$305:$G$371,7,TRUE))))*'INGRESO DE DATOS'!$D$26+(IF($C$38=1,0,(Tablas!$Q$2))) -> 0
B40: Número de hijos en la póliza : | C40: =+'INGRESO DE DATOS'!$H$17 -> 0 | F40: Edad del (de la) cónyuge : | G40: =+'INGRESO DE DATOS'!$H$19 -> 0 | K40: Prima del (de los) Hijo (s) : | M40: =(IF($C$40=0,0,(VLOOKUP($C$40,Tablas!$A$372:$G$374,3,TRUE))))*'INGRESO DE DATOS'!$D$26 -> 0 | N40: =(IF($C$40=0,0,(VLOOKUP($C$40,Tablas!$A$372:$G$374,4,TRUE))))*'INGRESO DE DATOS'!$D$26 -> 0 | O40: =(IF($C$40=0,0,(VLOOKUP($C$40,Tablas!$A$372:$G$374,5,TRUE))))*'INGRESO DE DATOS'!$D$26 -> 0 | P40: =(IF($C$40=0,0,(VLOOKUP($C$40,Tablas!$A$372:$G$374,6,TRUE))))*'INGRESO DE DATOS'!$D$26 -> 0 | Q40: =(IF($C$40=0,0,(VLOOKUP($C$40,Tablas!$A$372:$G$374,7,TRUE))))*'INGRESO DE DATOS'!$D$26 -> 0
K41: Total otros dependientes | M41: =Tablas!Q306 * 'INGRESO DE DATOS'!$D$26 -> 0 | N41: =Tablas!R306 * 'INGRESO DE DATOS'!$D$26 -> 0 | O41: =Tablas!S306 * 'INGRESO DE DATOS'!$D$26 -> 0 | P41: =Tablas!T306 * 'INGRESO DE DATOS'!$D$26 -> 0 | Q41: =Tablas!U306 * 'INGRESO DE DATOS'!$D$26 -> 0
B42: FECHA DE COTIZACION : | D42: =NOW() -> 2024-07-10T10:56:45.210 | K42: TOTAL PRIMA NETA : | M42: =SUM(M38:M41) -> 43698.75 | N42: =SUM(N38:N41) -> 37005 | O42: 32786.875 | P42: 22076.875 | Q42: 17518.75
K43: Costo administrativo anual : | M43: 937.5 | N43: 937.5 | O43: 937.5 | P43: 937.5 | Q43: 937.5
K44: IVA (16%) : | M44: =SUM(M42:M43)*16% -> 7141.8 | N44: =SUM(N42:N43)*16% -> 6070.8 | O44: 5395.9 | P44: 3682.3 | Q44: 2953
K45: =IF('INGRESO DE DATOS'!$D$26=0.95,"Costo total, (-5% de descuento)",IF('INGRESO DE DATOS'!$D$26=0.85,"Costo total, (-15% de descuento)",IF('INGRESO DE DATOS'!$D$26=0.9,"Costo total, (-10% de descuento)","Gran total anual"))) -> Costo total, (-15% de descuento) | M45: =SUM(M42:M44) -> 51778.05 | N45: =SUM(N42:N44) -> 44013.3 | O45: 39120.275 | P45: 26696.675 | Q45: 21409.25
K47: TARIFAS SEMESTRALES
K48: Prima del asegurado titular : | M48: =M38*(1+Tablas!$K$4) -> 43698.75 | N48: =N38*(1+Tablas!$K$4) -> 37005 | O48: =O38*(1+Tablas!$K$4) -> 32786.875 | P48: =P38*(1+Tablas!$K$4) -> 22076.875 | Q48: =Q38*(1+Tablas!$K$4) -> 17518.75
K49: Prima del (de la) cónyuge: | M49: =M39*(1+Tablas!$K$4) -> 0 | N49: =N39*(1+Tablas!$K$4) -> 0 | O49: =O39*(1+Tablas!$K$4) -> 0 | P49: =P39*(1+Tablas!$K$4) -> 0 | Q49: =Q39*(1+Tablas!$K$4) -> 0
K50: Prima del (de los) Hijo (s) : | M50: =M40*(1+Tablas!$K$4) -> 0 | N50: =N40*(1+Tablas!$K$4) -> 0 | O50: =O40*(1+Tablas!$K$4) -> 0 | P50: =P40*(1+Tablas!$K$4) -> 0 | Q50: =Q40*(1+Tablas!$K$4) -> 0
K51: Total otros dependientes | M51: =M41*(1+Tablas!$K$4) -> 0 | N51: =N41*(1+Tablas!$K$4) -> 0 | O51: =O41*(1+Tablas!$K$4) -> 0 | P51: =P41*(1+Tablas!$K$4) -> 0 | Q51: =Q41*(1+Tablas!$K$4) -> 0
K52: TOTAL PRIMA NETA : | M52: =SUM(M48:M51) -> 43698.75 | N52: =SUM(N48:N51) -> 37005 | O52: 32786.875 | P52: 22076.875 | Q52: =SUM(Q48:Q51) -> 17518.75
K53: Costo administrativo anual : | M53: 937.5 | N53: 937.5 | O53: 937.5 | P53: 937.5 | Q53: 937.5
K54: IVA (16%) : | M54: =SUM(M52:M53)*16% -> 7141.8 | N54: =SUM(N52:N53)*16% -> 6070.8 | O54: 5395.9 | P54: =SUM(P52:P53)*16% -> 3682.3 | Q54: 2953
K55: TOTAL primera cuota : | M55: =((M52/2)+M53)*1.16 -> 26432.775 | N55: =((N52/2)+N53)*1.16 -> 22550.4 | O55: 20103.8875 | P55: 13892.0875 | Q55: 11248.375
K56: Valor segunda cuota : | M56: =M52/2*1.16 -> 25345.275 | N56: =N52/2*1.16 -> 21462.9 | O56: 19016.3875 | P56: 12804.5875 | Q56: 10160.875
K57: =K45 -> Costo total, (-15% de descuento) | M57: =+M55+M56 -> 51778.05 | N57: =+N55+N56 -> 44013.3 | O57: 39120.275 | P57: =+P55+P56 -> 26696.675 | Q57: 21409.25
K59: TARIFAS TRIMESTRALES
K60: Prima del asegurado titular : | M60: =M38*(1+Tablas!$K$3) -> 43698.75 | N60: =N38*(1+Tablas!$K$3) -> 37005 | O60: =O38*(1+Tablas!$K$3) -> 32786.875 | P60: =P38*(1+Tablas!$K$3) -> 22076.875 | Q60: =Q38*(1+Tablas!$K$3) -> 17518.75
K61: Prima del (de la) cónyuge: | M61: =M39*(1+Tablas!$K$3) -> 0 | N61: =N39*(1+Tablas!$K$3) -> 0 | O61: =O39*(1+Tablas!$K$3) -> 0 | P61: =P39*(1+Tablas!$K$3) -> 0 | Q61: =Q39*(1+Tablas!$K$3) -> 0
K62: Prima del (de los) Hijo (s) : | M62: =M40*(1+Tablas!$K$3) -> 0 | N62: =N40*(1+Tablas!$K$3) -> 0 | O62: =O40*(1+Tablas!$K$3) -> 0 | P62: =P40*(1+Tablas!$K$3) -> 0 | Q62: =Q40*(1+Tablas!$K$3) -> 0
K63: Total otros dependientes | M63: =M41*(1+Tablas!$K$3) -> 0 | N63: =N41*(1+Tablas!$K$3) -> 0 | O63: =O41*(1+Tablas!$K$3) -> 0 | P63: =P41*(1+Tablas!$K$3) -> 0 | Q63: =Q41*(1+Tablas!$K$3) -> 0
K64: TOTAL PRIMA NETA : | M64: =SUM(M60:M63) -> 43698.75 | N64: =SUM(N60:N63) -> 37005 | O64: 32786.875 | P64: 22076.875 | Q64: =SUM(Q60:Q63) -> 17518.75
K65: Costo administrativo anual : | M65: 937.5 | N65: 937.5 | O65: 937.5 | P65: 937.5 | Q65: 937.5
K66: IVA (16%) : | M66: =SUM(M64:M65)*16% -> 7141.8 | N66: =SUM(N64:N65)*16% -> 6070.8 | O66: =SUM(O64:O65)*16% -> 5395.9 | P66: =SUM(P64:P65)*16% -> 3682.3 | Q66: 2953
K67: TOTAL primera cuota : | M67: =((M64/4)+M65)*1.16 -> 13760.1375 | N67: =((N64/4)+N65)*1.16 -> 11818.95 | O67: =((O64/4)+O65)*1.16 -> 10595.69375 | P67: 7489.79375 | Q67: 6167.9375
K68: Valor cuota trimestral 2 a 4: | M68: =M64/4*1.16 -> 12672.6375 | N68: =N64/4*1.16 -> 10731.45 | O68: 9508.19375 | P68: 6402.29375 | Q68: 5080.4375
K69: =K57 -> Costo total, (-15% de descuento) | M69: =M67+(M68*3) -> 51778.05 | N69: =N67+(N68*3) -> 44013.3 | O69: =O67+(O68*3) -> 39120.275 | P69: =P67+(P68*3) -> 26696.675 | Q69: 21409.25
K71: TARIFAS MENSUALES
K72: Prima del asegurado titular : | M72: =M38*(1+Tablas!$K$2) -> 43698.75 | N72: =N38*(1+Tablas!$K$2) -> 37005 | O72: =O38*(1+Tablas!$K$2) -> 32786.875 | P72: =P38*(1+Tablas!$K$2) -> 22076.875 | Q72: =Q38*(1+Tablas!$K$2) -> 17518.75
B73: Tarifas validas a partir del 1 de marzo al 31 de diciembre del 2024. | K73: Prima del (de la) cónyuge: | M73: =M39*(1+Tablas!$K$2) -> 0 | N73: =N39*(1+Tablas!$K$2) -> 0 | O73: =O39*(1+Tablas!$K$2) -> 0 | P73: =P39*(1+Tablas!$K$2) -> 0 | Q73: =Q39*(1+Tablas!$K$2) -> 0
B74: Promociones válidas al 31 de diciembre de 2024. | K74: Prima del (de los) Hijo (s) : | M74: =M40*(1+Tablas!$K$2) -> 0 | N74: =N40*(1+Tablas!$K$2) -> 0 | O74: =O40*(1+Tablas!$K$2) -> 0 | P74: =P40*(1+Tablas!$K$2) -> 0 | Q74: =Q40*(1+Tablas!$K$2) -> 0
B75: El 10% de descuento en productos Globales sobre prima neta será aplicable durante toda la vida de la póliza, siempre y cuando el asegurado no haga cambios en el plan y deducibles contratados. | K75: Total otros dependientes | M75: =M41*(1+Tablas!$K$2) -> 0 | N75: =N41*(1+Tablas!$K$2) -> 0 | O75: =O41*(1+Tablas!$K$2) -> 0 | P75: =P41*(1+Tablas!$K$2) -> 0 | Q75: =Q41*(1+Tablas!$K$2) -> 0
B76: 6 meses sin intereses sin cargo al agente para modalidad de pago anual durante el primer año póliza con tarjetas de crédito participantes: Afirme, Azteca, Bajío, Banjercito, Banorte, Banregio, BBVA, Citibanamex, Famsa, HSBC, Inbursa, Invex, IXE, Liverpool, Mifel, Multiva, Santander, Scotiabank, Sociedad de Facilidades Multirotativas y American Express. Promoción válida sólo para tarjetas emitidas en la República Mexicana. | K76: TOTAL PRIMA NETA : | M76: =SUM(M72:M75) -> 43698.75 | N76: =SUM(N72:N75) -> 37005 | O76: 32786.875 | P76: 22076.875 | Q76: =SUM(Q72:Q75) -> 17518.75
B77: En caso de que el asegurado elija la promoción “Sin costo por pago fraccionado” no podrá optar por la promoción a meses sin intereses. | K77: Costo administrativo anual : | M77: 937.5 | N77: 937.5 | O77: 937.5 | P77: 937.5 | Q77: 937.5
B78: Las pólizas contratadas cuentan con limitaciones y exclusiones las cuáles pueden ser consultadas en www.bupasalud.com.mx Para más información, llámanos al 55 5202-1701 ext 4 o envíanos un correo a: ventasdirectas@bupa.com.mx | K78: IVA (16%) : | M78: =SUM(M76:M77)*16% -> 7141.8 | N78: =SUM(N76:N77)*16% -> 6070.8 | O78: 5395.9 | P78: =SUM(P76:P77)*16% -> 3682.3 | Q78: 2953
B79: La presente cotización es de carácter informativo, no constituye una solicitud de seguro y/o el monto de la prima definitiva y/o las condiciones de la misma y/o una oferta de aseguramiento en términos del artículo 5to de la Ley Sobre el Contrato de Seguro. La emisión de la póliza asícomo posibles cambios en la tarifa están sujetos a valoración del riesgo de acuerdo con las políticas de Suscripción de Bupa México y es susceptible de modificaciones, por lo que Bupa podrá aceptar o negar el aseguramiento del riesgo propuesto. | K79: TOTAL primera cuota : | M79: =((M76/12)+M77)*1.16 -> 5311.7125 | N79: =((N76/12)+N77)*1.16 -> 4664.65 | O79: 4256.897917 | P79: 3221.597917 | Q79: 2780.979167
K80: Valor cuota mensual 2 a 12 : | M80: =M76/12*1.16 -> 4224.2125 | N80: =N76/12*1.16 -> 3577.15 | O80: 3169.397917 | P80: 2134.097917 | Q80: 1693.479167
K81: =K69 -> Costo total, (-15% de descuento) | M81: =M79+(M80*11) -> 51778.05 | N81: =N79+(N80*11) -> 44013.3 | O81: =O79+(O80*11) -> 39120.275 | P81: =P79+(P80*11) -> 26696.675 | Q81: 21409.25

Sheet Global Premier Health Plan
B36: Nombre del asegurado titular : | C36: =+'INGRESO DE DATOS'!$D$15 -> JUAN VIDAL | L36: Deducibles | N36: PLAN A | O36: PLAN 1 | P36: PLAN 2 | Q36: PLAN 3
L37: Dentro del país de residencia | N37: 1000 | O37: 2000 | P37: 5000 | Q37: 10000
B38: Agencia / Agente : | C38: =+'INGRESO DE DATOS'!$D$29 -> Nombre del Agente | L38: Fuera del país de residencia | N38: 1000 | O38: 2000 | P38: 5000 | Q38: 10000
C40: Número de adultos en la póliza : | D40: =+'INGRESO DE DATOS'!$D$17 -> 1 | F40: Edad del asegurado titular : | G40: =+'INGRESO DE DATOS'!$D$19 -> 18 | I40: =VLOOKUP($D$40,Tablas!A1503:B1504,2,0) -> 0 | L40: TARIFAS ANUALES
L41: Prima del asegurado titular : | N41: =(VLOOKUP($G$40,Tablas!$A$155:$G$221,3,TRUE))*'INGRESO DE DATOS'!$D$26+(Tablas!$Q$2) -> 94146.25 | O41: =(VLOOKUP($G$40,Tablas!$A$155:$G$221,4,TRUE))*'INGRESO DE DATOS'!$D$26+(Tablas!$Q$2) -> 68146.875 | P41: =(VLOOKUP($G$40,Tablas!$A$155:$G$221,5,TRUE))*'INGRESO DE DATOS'!$D$26+(Tablas!$Q$2) -> 47715 | Q41: =(VLOOKUP($G$40,Tablas!$A$155:$G$221,6,TRUE))*'INGRESO DE DATOS'!$D$26+(Tablas!$Q$2) -> 36165.625
C42: Número de hijos en la póliza : | D42: =+'INGRESO DE DATOS'!$H$17 -> 0 | F42: Edad del (de la) cónyuge : | G42: =+'INGRESO DE DATOS'!$H$19 -> 0 | L42: Prima del (de la) cónyuge: | N42: =(IF($D$40=1,0,(VLOOKUP($G$42,Tablas!$A$155:$G$221,3,TRUE))))*'INGRESO DE DATOS'!$D$26+(IF($D$40=1,0,(Tablas!$Q$2))) -> 0 | O42: =(IF($D$40=1,0,(VLOOKUP($G$42,Tablas!$A$155:$G$221,4,TRUE))))*'INGRESO DE DATOS'!$D$26+(IF($D$40=1,0,(Tablas!$Q$2))) -> 0 | P42: =(IF($D$40=1,0,(VLOOKUP($G$42,Tablas!$A$155:$G$221,5,TRUE))))*'INGRESO DE DATOS'!$D$26+(IF($D$40=1,0,(Tablas!$Q$2))) -> 0 | Q42: =(IF($D$40=1,0,(VLOOKUP($G$42,Tablas!$A$155:$G$221,6,TRUE))))*'INGRESO DE DATOS'!$D$26+(IF($D$40=1,0,(Tablas!$Q$2))) -> 0
L43: Prima del (de los) Hijo (s) : | N43: =(IF($D$42=0,0,(VLOOKUP($D$42,Tablas!$A$222:$G$224,3,TRUE))))*'INGRESO DE DATOS'!$D$26 -> 0 | O43: =(IF($D$42=0,0,(VLOOKUP($D$42,Tablas!$A$222:$G$224,4,TRUE))))*'INGRESO DE DATOS'!$D$26 -> 0 | P43: =(IF($D$42=0,0,(VLOOKUP($D$42,Tablas!$A$222:$G$224,5,TRUE))))*'INGRESO DE DATOS'!$D$26 -> 0 | Q43: =(IF($D$42=0,0,(VLOOKUP($D$42,Tablas!$A$222:$G$224,6,TRUE))))*'INGRESO DE DATOS'!$D$26 -> 0
B44: FECHA DE COTIZACION : | D44: =NOW() -> 2024-07-10T10:56:45.210 | L44: Total otros dependientes | N44: =Tablas!Q156*'INGRESO DE DATOS'!$D$26 -> 0 | O44: =Tablas!R156*'INGRESO DE DATOS'!$D$26 -> 0 | P44: =Tablas!S156*'INGRESO DE DATOS'!$D$26 -> 0 | Q44: =Tablas!T156*'INGRESO DE DATOS'!$D$26 -> 0
L45: TOTAL PRIMA NETA : | N45: =SUM(N41:N44) -> 94146.25 | O45: =SUM(O41:O44) -> 68146.875 | P45: 47715 | Q45: 36165.625
L46: Costo administrativo anual : | N46: 937.5 | O46: 937.5 | P46: 937.5 | Q46: 937.5
L47: IVA (16%) : | N47: =SUM(N45:N46)*16% -> 15213.4 | O47: =SUM(O45:O46)*16% -> 11053.5 | P47: =SUM(P45:P46)*16% -> 7784.4 | Q47: 5936.5
L48: =IF('INGRESO DE DATOS'!$D$26=0.95,"Costo total, (-5% de descuento)",IF('INGRESO DE DATOS'!$D$26=0.85,"Costo total, (-15% de descuento)",IF('INGRESO DE DATOS'!$D$26=0.9,"Costo total, (-10% de descuento)","Gran total anual"))) -> Costo total, (-15% de descuento) | N48: =SUM(N45:N47) -> 110297.15 | O48: =SUM(O45:O47) -> 80137.875 | P48: =SUM(P45:P47) -> 56436.9 | Q48: 43039.625
L50: TARIFAS SEMESTRALES
L51: Prima del asegurado titular : | N51: =N41*(1+Tablas!$K$4) -> 94146.25 | O51: =O41*(1+Tablas!$K$4) -> 68146.875 | P51: =P41*(1+Tablas!$K$4) -> 47715 | Q51: =Q41*(1+Tablas!$K$4) -> 36165.625
L52: Prima del (de la) cónyuge: | N52: =N42*(1+Tablas!$K$4) -> 0 | O52: =O42*(1+Tablas!$K$4) -> 0 | P52: =P42*(1+Tablas!$K$4) -> 0 | Q52: =Q42*(1+Tablas!$K$4) -> 0
L53: Prima del (de los) Hijo (s) : | N53: =N43*(1+Tablas!$K$4) -> 0 | O53: =O43*(1+Tablas!$K$4) -> 0 | P53: =P43*(1+Tablas!$K$4) -> 0 | Q53: =Q43*(1+Tablas!$K$4) -> 0
L54: Total otros dependientes | N54: =N44*(1+Tablas!$K$4) -> 0 | O54: =O44*(1+Tablas!$K$4) -> 0 | P54: =P44*(1+Tablas!$K$4) -> 0 | Q54: =Q44*(1+Tablas!$K$4) -> 0
L55: TOTAL PRIMA NETA : | N55: =SUM(N51:N54) -> 94146.25 | O55: =SUM(O51:O54) -> 68146.875 | P55: 47715 | Q55: 36165.625
L56: Costo administrativo anual : | N56: 937.5 | O56: 937.5 | P56: 937.5 | Q56: 937.5
L57: IVA (16%) : | N57: =SUM(N55:N56)*16% -> 15213.4 | O57: =SUM(O55:O56)*16% -> 11053.5 | P57: 7784.4 | Q57: 5936.5
L58: TOTAL primera cuota : | N58: =((N55/2)+N56)*1.16 -> 55692.325 | O58: =((O55/2)+O56)*1.16 -> 40612.6875 | P58: =((P55/2)+P56)*1.16 -> 28762.2 | Q58: 22063.5625
L59: Valor segunda cuota : | N59: =N55/2*1.16 -> 54604.825 | O59: =O55/2*1.16 -> 39525.1875 | P59: =P55/2*1.16 -> 27674.7 | Q59: 20976.0625
L60: =L48 -> Costo total, (-15% de descuento) | N60: =N58+N59 -> 110297.15 | O60: =O58+O59 -> 80137.875 | P60: =P58+P59 -> 56436.9 | Q60: =Q58+Q59 -> 43039.625
L62: TARIFAS TRIMESTRALES
L63: Prima del asegurado titular : | N63: =N41*(1+Tablas!$K$3) -> 94146.25 | O63: =O41*(1+Tablas!$K$3) -> 68146.875 | P63: =P41*(1+Tablas!$K$3) -> 47715 | Q63: =Q41*(1+Tablas!$K$3) -> 36165.625
L64: Prima del (de la) cónyuge: | N64: =N42*(1+Tablas!$K$3) -> 0 | O64: =O42*(1+Tablas!$K$3) -> 0 | P64: =P42*(1+Tablas!$K$3) -> 0 | Q64: =Q42*(1+Tablas!$K$3) -> 0
L65: Prima del (de los) Hijo (s) : | N65: =N43*(1+Tablas!$K$3) -> 0 | O65: =O43*(1+Tablas!$K$3) -> 0 | P65: =P43*(1+Tablas!$K$3) -> 0 | Q65: =Q43*(1+Tablas!$K$3) -> 0
L66: Total otros dependientes | N66: =N44*(1+Tablas!$K$3) -> 0 | O66: =O44*(1+Tablas!$K$3) -> 0 | P66: =P44*(1+Tablas!$K$3) -> 0 | Q66: =Q44*(1+Tablas!$K$3) -> 0
L67: TOTAL PRIMA NETA : | N67: =SUM(N63:N66) -> 94146.25 | O67: =SUM(O63:O66) -> 68146.875 | P67: 47715 | Q67: 36165.625
L68: Costo administrativo anual : | N68: 937.5 | O68: 937.5 | P68: 937.5 | Q68: 937.5
L69: IVA (16%) : | N69: =SUM(N67:N68)*16% -> 15213.4 | O69: =SUM(O67:O68)*16% -> 11053.5 | P69: 7784.4 | Q69: 5936.5
L70: TOTAL primera cuota : | N70: =((N67/4)+N68)*1.16 -> 28389.9125 | O70: =((O67/4)+O68)*1.16 -> 20850.09375 | P70: 14924.85 | Q70: 11575.53125
L71: Valor cuota trimestral 2 a 4: | N71: =N67/4*1.16 -> 27302.4125 | O71: =O67/4*1.16 -> 19762.59375 | P71: 13837.35 | Q71: 10488.03125
L72: =L60 -> Costo total, (-15% de descuento) | N72: =N70+(N71*3) -> 110297.15 | O72: =O70+(O71*3) -> 80137.875 | P72: =P70+(P71*3) -> 56436.9 | Q72: =Q70+(Q71*3) -> 43039.625
L74: TARIFAS MENSUALES
L75: Prima del asegurado titular : | N75: =N41*(1+Tablas!$K$2) -> 94146.25 | O75: =O41*(1+Tablas!$K$2) -> 68146.875 | P75: =P41*(1+Tablas!$K$2) -> 47715 | Q75: =Q41*(1+Tablas!$K$2) -> 36165.625
L76: Prima del (de la) cónyuge: | N76: =N42*(1+Tablas!$K$2) -> 0 | O76: =O42*(1+Tablas!$K$2) -> 0 | P76: =P42*(1+Tablas!$K$2) -> 0 | Q76: =Q42*(1+Tablas!$K$2) -> 0
B77: Tarifas validas a partir del 1 de marzo al 31 de diciembre del 2024. | L77: Prima del (de los) Hijo (s) : | N77: =N43*(1+Tablas!$K$2) -> 0 | O77: =O43*(1+Tablas!$K$2) -> 0 | P77: =P43*(1+Tablas!$K$2) -> 0 | Q77: =Q43*(1+Tablas!$K$2) -> 0
B78: Promociones válidas al 31 de diciembre de 2024. | L78: Total otros dependientes | N78: =N44*(1+Tablas!$K$2) -> 0 | O78: =O44*(1+Tablas!$K$2) -> 0 | P78: =P44*(1+Tablas!$K$2) -> 0 | Q78: =Q44*(1+Tablas!$K$2) -> 0
B79: El 10% de descuento en productos Globales sobre prima neta será aplicable durante toda la vida de la póliza, siempre y cuando el asegurado no haga cambios en el plan y deducibles contratados. | L79: TOTAL PRIMA NETA : | N79: =SUM(N75:N78) -> 94146.25 | O79: =SUM(O75:O78) -> 68146.875 | P79: 47715 | Q79: =SUM(Q75:Q78) -> 36165.625
B80: 6 meses sin intereses sin cargo al agente para modalidad de pago anual durante el primer año póliza con tarjetas de crédito participantes: Afirme, Azteca, Bajío, Banjercito, Banorte, Banregio, BBVA, Citibanamex, Famsa, HSBC, Inbursa, Invex, IXE, Liverpool, Mifel, Multiva, Santander, Scotiabank, Sociedad de Facilidades Multirotativas y American Express. Promoción válida sólo para tarjetas emitidas en la República Mexicana. | L80: Costo administrativo anual : | N80: 937.5 | O80: 937.5 | P80: 937.5 | Q80: 937.5
B81: En caso de que el asegurado elija la promoción “Sin costo por pago fraccionado” no podrá optar por la promoción a meses sin intereses. | L81: IVA (16%) : | N81: =SUM(N79:N80)*16% -> 15213.4 | O81: =SUM(O79:O80)*16% -> 11053.5 | P81: 7784.4 | Q81: 5936.5
B82: Las pólizas contratadas cuentan con limitaciones y exclusiones las cuáles pueden ser consultadas en www.bupasalud.com.mx Para más información, llámanos al 55 5202-1701 ext 4 o envíanos un correo a: ventasdirectas@bupa.com.mx | L82: TOTAL primera cuota : | N82: =((N79/12)+N80)*1.16 -> 10188.30417 | O82: =((O79/12)+O80)*1.16 -> 7675.03125 | P82: 5699.95 | Q82: 4583.510417
B83: La presente cotización es de carácter informativo, no constituye una solicitud de seguro y/o el monto de la prima definitiva y/o las condiciones de la misma y/o una oferta de aseguramiento en términos del artículo 5to de la Ley Sobre el Contrato de Seguro. La emisión de la póliza asícomo posibles cambios en la tarifa están sujetos a valoración del riesgo de acuerdo con las políticas de Suscripción de Bupa México y es susceptible de modificaciones, por lo que Bupa podrá aceptar o negar el aseguramiento del riesgo propuesto. | L83: Valor cuota mensual 2 a 12 : | N83: =N79/12*1.16 -> 9100.804167 | O83: =O79/12*1.16 -> 6587.53125 | P83: 4612.45 | Q83: 3496.010417
L84: =L72 -> Costo total, (-15% de descuento) | N84: =N82+(N83*11) -> 110297.15 | O84: =O82+(O83*11) -> 80137.875 | P84: =P82+(P83*11) -> 56436.9 | Q84: =Q82+(Q83*11) -> 43039.625

Sheet Global Select PE Health Plan
M32: FALSE
B33: Nombre del asegurado titular : | C33: =+'INGRESO DE DATOS'!$D$15 -> JUAN VIDAL | K33: Deducibles | M33: PLAN A | N33: PLAN 1 | O33: PLAN 2 | P33: PLAN 3 | Q33: PLAN 4
K34: Dentro del país de residencia | M34: 2000 | N34: 3500 | O34: 5000 | P34: 10000 | Q34: 20000
B35: Agencia / Agente : | C35: =+'INGRESO DE DATOS'!$D$29 -> Nombre del Agente | K35: Fuera del país de residencia | M35: 2000 | N35: 3500 | O35: 5000 | P35: 10000 | Q35: 20000
K37: TARIFAS ANUALES
B38: Número de adultos en la póliza : | C38: =+'INGRESO DE DATOS'!$D$17 -> 1 | F38: Edad del asegurado titular : | G38: =+'INGRESO DE DATOS'!$D$19 -> 18 | H38: =VLOOKUP($C$38,Tablas!A1503:B1504,2,0) -> 0 | K38: Prima del asegurado titular : | M38: =(VLOOKUP($G$38,Tablas!$A$1512:$G$1578,3,TRUE))+(Tablas!$Q$2) -> 41162.5 | N38: =(VLOOKUP($G$38,Tablas!$A$1512:$G$1578,4,TRUE))+(Tablas!$Q$2) -> 34875 | O38: =(VLOOKUP($G$38,Tablas!$A$1512:$G$1578,5,TRUE))+(Tablas!$Q$2) -> 30887.5 | P38: =(VLOOKUP($G$38,Tablas!$A$1512:$G$1578,6,TRUE))+(Tablas!$Q$2) -> 20812.5 | Q38: =(VLOOKUP($G$38,Tablas!$A$1512:$G$1578,7,TRUE))+(Tablas!$Q$2) -> 16525
K39: Prima del (de la) cónyuge: | M39: =(IF($C$38=1,0,(VLOOKUP($G$40,Tablas!$A$1512:$G$1578,3,TRUE))))+(IF($C$38=1,0,(Tablas!$Q$2))) -> 0 | N39: =(IF($C$38=1,0,(VLOOKUP($G$40,Tablas!$A$1512:$G$1578,4,TRUE))))+(IF($C$38=1,0,(Tablas!$Q$2))) -> 0 | O39: =(IF($C$38=1,0,(VLOOKUP($G$40,Tablas!$A$1512:$G$1578,5,TRUE))))+(IF($C$38=1,0,(Tablas!$Q$2))) -> 0 | P39: =(IF($C$38=1,0,(VLOOKUP($G$40,Tablas!$A$1512:$G$1578,6,TRUE))))+(IF($C$38=1,0,(Tablas!$Q$2))) -> 0 | Q39: =(IF($C$38=1,0,(VLOOKUP($G$40,Tablas!$A$1512:$G$1578,7,TRUE))))+(IF($C$38=1,0,(Tablas!$Q$2))) -> 0
B40: Número de hijos en la póliza : | C40: =+'INGRESO DE DATOS'!$H$17 -> 0 | F40: Edad del (de la) cónyuge : | G40: =+'INGRESO DE DATOS'!$H$19 -> 0 | K40: Prima del (de los) Hijo (s) : | M40: =(IF($C$40=0,0,(VLOOKUP($C$40,Tablas!$A$1579:$G$1581,3,TRUE)))) -> 0 | N40: =(IF($C$40=0,0,(VLOOKUP($C$40,Tablas!$A$1579:$G$1581,4,TRUE)))) -> 0 | O40: =(IF($C$40=0,0,(VLOOKUP($C$40,Tablas!$A$1579:$G$1581,5,TRUE)))) -> 0 | P40: =(IF($C$40=0,0,(VLOOKUP($C$40,Tablas!$A$1579:$G$1581,6,TRUE)))) -> 0 | Q40: =(IF($C$40=0,0,(VLOOKUP($C$40,Tablas!$A$1579:$G$1581,7,TRUE)))) -> 0
K41: Total otros dependientes | M41: =Tablas!Q1513 -> 0 | N41: =Tablas!R1513 -> 0 | O41: =Tablas!S1513 -> 0 | P41: =Tablas!T1513 -> 0 | Q41: =Tablas!U1513 -> 0
B42: FECHA DE COTIZACION : | D42: =NOW() -> 2024-07-10T10:56:45.210 | K42: TOTAL PRIMA NETA : | M42: =SUM(M38:M41) -> 41162.5 | N42: =SUM(N38:N41) -> 34875 | O42: 30887.5 | P42: 20812.5 | Q42: 16525
K43: Costo administrativo anual : | M43: 937.5 | N43: 937.5 | O43: 937.5 | P43: 937.5 | Q43: 937.5
K44: IVA (16%) : | M44: =SUM(M42:M43)*16% -> 6736 | N44: =SUM(N42:N43)*16% -> 5730 | O44: 5092 | P44: =SUM(P42:P43)*16% -> 3480 | Q44: 2794
K45: Gran total anual | M45: =SUM(M42:M44) -> 48836 | N45: =SUM(N42:N44) -> 41542.5 | O45: 36917 | P45: 25230 | Q45: 20256.5
K47: TARIFAS SEMESTRALES
K48: Prima del asegurado titular : | M48: =M38*(1+Tablas!$K$4) -> 41162.5 | N48: =N38*(1+Tablas!$K$4) -> 34875 | O48: =O38*(1+Tablas!$K$4) -> 30887.5 | P48: =P38*(1+Tablas!$K$4) -> 20812.5 | Q48: =Q38*(1+Tablas!$K$4) -> 16525
K49: Prima del (de la) cónyuge: | M49: =M39*(1+Tablas!$K$4) -> 0 | N49: =N39*(1+Tablas!$K$4) -> 0 | O49: =O39*(1+Tablas!$K$4) -> 0 | P49: =P39*(1+Tablas!$K$4) -> 0 | Q49: =Q39*(1+Tablas!$K$4) -> 0
K50: Prima del (de los) Hijo (s) : | M50: =M40*(1+Tablas!$K$4) -> 0 | N50: =N40*(1+Tablas!$K$4) -> 0 | O50: =O40*(1+Tablas!$K$4) -> 0 | P50: =P40*(1+Tablas!$K$4) -> 0 | Q50: =Q40*(1+Tablas!$K$4) -> 0
K51: Total otros dependientes | M51: =M41*(1+Tablas!$K$4) -> 0 | N51: =N41*(1+Tablas!$K$4) -> 0 | O51: =O41*(1+Tablas!$K$4) -> 0 | P51: =P41*(1+Tablas!$K$4) -> 0 | Q51: =Q41*(1+Tablas!$K$4) -> 0
K52: TOTAL PRIMA NETA : | M52: =SUM(M48:M51) -> 41162.5 | N52: =SUM(N48:N51) -> 34875 | O52: 30887.5 | P52: 20812.5 | Q52: 16525
K53: Costo administrativo anual : | M53: 937.5 | N53: 937.5 | O53: 937.5 | P53: 937.5 | Q53: 937.5
K54: IVA (16%) : | M54: =SUM(M52:M53)*16% -> 6736 | N54: =SUM(N52:N53)*16% -> 5730 | O54: 5092 | P54: =SUM(P52:P53)*16% -> 3480 | Q54: 2794
K55: TOTAL primera cuota : | M55: =((M52/2)+M53)*1.16 -> 24961.75 | N55: =((N52/2)+N53)*1.16 -> 21315 | O55: 19002.25 | P55: 13158.75 | Q55: 10672
K56: Valor segunda cuota : | M56: =M52/2*1.16 -> 23874.25 | N56: =N52/2*1.16 -> 20227.5 | O56: 17914.75 | P56: 12071.25 | Q56: 9584.5
K57: =K45 -> Gran total anual | M57: =+M55+M56 -> 48836 | N57: =+N55+N56 -> 41542.5 | O57: 36917 | P57: 25230 | Q57: 20256.5
K59: TARIFAS TRIMESTRALES
K60: Prima del asegurado titular : | M60: =M38*(1+Tablas!$K$3) -> 41162.5 | N60: =N38*(1+Tablas!$K$3) -> 34875 | O60: =O38*(1+Tablas!$K$3) -> 30887.5 | P60: =P38*(1+Tablas!$K$3) -> 20812.5 | Q60: =Q38*(1+Tablas!$K$3) -> 16525
K61: Prima del (de la) cónyuge: | M61: =M39*(1+Tablas!$K$3) -> 0 | N61: =N39*(1+Tablas!$K$3) -> 0 | O61: =O39*(1+Tablas!$K$3) -> 0 | P61: =P39*(1+Tablas!$K$3) -> 0 | Q61: =Q39*(1+Tablas!$K$3) -> 0
K62: Prima del (de los) Hijo (s) : | M62: =M40*(1+Tablas!$K$3) -> 0 | N62: =N40*(1+Tablas!$K$3) -> 0 | O62: =O40*(1+Tablas!$K$3) -> 0 | P62: =P40*(1+Tablas!$K$3) -> 0 | Q62: =Q40*(1+Tablas!$K$3) -> 0
K63: Total otros dependientes | M63: =M41*(1+Tablas!$K$3) -> 0 | N63: =N41*(1+Tablas!$K$3) -> 0 | O63: =O41*(1+Tablas!$K$3) -> 0 | P63: =P41*(1+Tablas!$K$3) -> 0 | Q63: =Q41*(1+Tablas!$K$3) -> 0
K64: TOTAL PRIMA NETA : | M64: =SUM(M60:M63) -> 41162.5 | N64: =SUM(N60:N63) -> 34875 | O64: 30887.5 | P64: 20812.5 | Q64: 16525
K65: Costo administrativo anual : | M65: 937.5 | N65: 937.5 | O65: 937.5 | P65: 937.5 | Q65: 937.5
K66: IVA (16%) : | M66: =SUM(M64:M65)*16% -> 6736 | N66: =SUM(N64:N65)*16% -> 5730 | O66: 5092 | P66: =SUM(P64:P65)*16% -> 3480 | Q66: 2794
K67: TOTAL primera cuota : | M67: =((M64/4)+M65)*1.16 -> 13024.625 | N67: =((N64/4)+N65)*1.16 -> 11201.25 | O67: 10044.875 | P67: 7123.125 | Q67: 5879.75
K68: Valor cuota trimestral 2 a 4: | M68: =M64/4*1.16 -> 11937.125 | N68: =N64/4*1.16 -> 10113.75 | O68: 8957.375 | P68: 6035.625 | Q68: 4792.25
B69: Este plan cuenta con los siguientes periodos de espera adicionales: | K69: =K57 -> Gran total anual | M69: =M67+(M68*3) -> 48836 | N69: =N67+(N68*3) -> 41542.5 | O69: =O67+(O68*3) -> 36917 | P69: =P67+(P68*3) -> 25230 | Q69: 20256.5
B70: PERÍODOS DE ESPERA
B71: Padecimientos de rodilla, ácido-pépticos, columna vertebral, nariz, senos paranasales, amígdalas, adenoides, hemorroides, hernias, tumoraciones mamarias (benignas y/o malignas), padecimientos anorrectales, prostáticos, ginecológicos, várices, insuficiencia del piso perineal, padecimientos de la vesícula y vías biliares, enfermedades articulares de las falanges de los pies, cataratas, litiasis renal y en vías urinarias. | I71: 6 meses | K71: TARIFAS MENSUALES
B72: Tratamiento contra el Cáncer. | I72: 6 meses | K72: Prima del asegurado titular : | M72: =M38*(1+Tablas!$K$2) -> 41162.5 | N72: =N38*(1+Tablas!$K$2) -> 34875 | O72: =O38*(1+Tablas!$K$2) -> 30887.5 | P72: =P38*(1+Tablas!$K$2) -> 20812.5 | Q72: =Q38*(1+Tablas!$K$2) -> 16525
B73: Examen dental preventivo. | I73: 10 meses | K73: Prima del (de la) cónyuge: | M73: =M39*(1+Tablas!$K$2) -> 0 | N73: =N39*(1+Tablas!$K$2) -> 0 | O73: =O39*(1+Tablas!$K$2) -> 0 | P73: =P39*(1+Tablas!$K$2) -> 0 | Q73: =Q39*(1+Tablas!$K$2) -> 0
B74: Trasplantes. | I74: 6 meses | K74: Prima del (de los) Hijo (s) : | M74: =M40*(1+Tablas!$K$2) -> 0 | N74: =N40*(1+Tablas!$K$2) -> 0 | O74: =O40*(1+Tablas!$K$2) -> 0 | P74: =P40*(1+Tablas!$K$2) -> 0 | Q74: =Q40*(1+Tablas!$K$2) -> 0
B75: Tarifas validas a partir del 1 de marzo al 31 de diciembre del 2024. | K75: Total otros dependientes | M75: =M41*(1+Tablas!$K$2) -> 0 | N75: =N41*(1+Tablas!$K$2) -> 0 | O75: =O41*(1+Tablas!$K$2) -> 0 | P75: =P41*(1+Tablas!$K$2) -> 0 | Q75: =Q41*(1+Tablas!$K$2) -> 0
B76: Promociones válidas al 31 de diciembre de 2024. | K76: TOTAL PRIMA NETA : | M76: =SUM(M72:M75) -> 41162.5 | N76: =SUM(N72:N75) -> 34875 | O76: 30887.5 | P76: 20812.5 | Q76: =SUM(Q72:Q75) -> 16525
B77: El 10% de descuento en productos Globales sobre prima neta será aplicable durante toda la vida de la póliza, siempre y cuando el asegurado no haga cambios en el plan y deducibles contratados. | K77: Costo administrativo anual : | M77: 937.5 | N77: 937.5 | O77: 937.5 | P77: 937.5 | Q77: 937.5
B78: 6 meses sin intereses sin cargo al agente para modalidad de pago anual durante el primer año póliza con tarjetas de crédito participantes: Afirme, Azteca, Bajío, Banjercito, Banorte, Banregio, BBVA, Citibanamex, Famsa, HSBC, Inbursa, Invex, IXE, Liverpool, Mifel, Multiva, Santander, Scotiabank, Sociedad de Facilidades Multirotativas y American Express. Promoción válida sólo para tarjetas emitidas en la República Mexicana. | K78: IVA (16%) : | M78: =SUM(M76:M77)*16% -> 6736 | N78: =SUM(N76:N77)*16% -> 5730 | O78: =SUM(O76:O77)*16% -> 5092 | P78: =SUM(P76:P77)*16% -> 3480 | Q78: =SUM(Q76:Q77)*16% -> 2794
B79: En caso de que el asegurado elija la promoción “Sin costo por pago fraccionado” no podrá optar por la promoción a meses sin intereses. | K79: TOTAL primera cuota : | M79: =((M76/12)+M77)*1.16 -> 5066.541667 | N79: =((N76/12)+N77)*1.16 -> 4458.75 | O79: =((O76/12)+O77)*1.16 -> 4073.291667 | P79: =((P76/12)+P77)*1.16 -> 3099.375 | Q79: =((Q76/12)+Q77)*1.16 -> 2684.916667
B80: Las pólizas contratadas cuentan con limitaciones y exclusiones las cuáles pueden ser consultadas en www.bupasalud.com.mx Para más información, llámanos al 55 5202-1701 ext 4 o envíanos un correo a: ventasdirectas@bupa.com.mx | K80: Valor cuota mensual 2 a 12 : | M80: =M76/12*1.16 -> 3979.041667 | N80: =N76/12*1.16 -> 3371.25 | O80: =O76/12*1.16 -> 2985.791667 | P80: =P76/12*1.16 -> 2011.875 | Q80: =Q76/12*1.16 -> 1597.416667
B81: La presente cotización es de carácter informativo, no constituye una solicitud de seguro y/o el monto de la prima definitiva y/o las condiciones de la misma y/o una oferta de aseguramiento en términos del artículo 5to de la Ley Sobre el Contrato de Seguro. La emisión de la póliza asícomo posibles cambios en la tarifa están sujetos a valoración del riesgo de acuerdo con las políticas de Suscripción de Bupa México y es susceptible de modificaciones, por lo que Bupa podrá aceptar o negar el aseguramiento del riesgo propuesto. | K81: =K69 -> Gran total anual | M81: =M79+(M80*11) -> 48836 | N81: =N79+(N80*11) -> 41542.5 | O81: =O79+(O80*11) -> 36917 | P81: =P79+(P80*11) -> 25230 | Q81: 20256.5

Sheet Global Elite Health Plan
B26: Nombre del asegurado titular : | C26: =+'INGRESO DE DATOS'!$D$15 -> JUAN VIDAL | K26: Deducibles | M26: PLAN 1 | N26: PLAN 2 | O26: PLAN 3 | P26: PLAN 4 | Q26: PLAN 5
K27: Dentro del país de residencia | M27: 1000 | N27: 2000 | O27: 3500 | P27: 5000 | Q27: 10000
B28: Agencia / Agente : | C28: =+'INGRESO DE DATOS'!$D$29 -> Nombre del Agente | K28: Fuera del país de residencia | M28: 1000 | N28: 2000 | O28: 3500 | P28: 5000 | Q28: 10000
B30: Número de adultos en la póliza : | D30: =+'INGRESO DE DATOS'!$D$17 -> 1 | E30: Edad del asegurado titular : | G30: =+'INGRESO DE DATOS'!$D$19 -> 18 | I30: =VLOOKUP($D$30,Tablas!A1503:B1504,2,0) -> 0 | K30: TARIFAS ANUALES
K31: Prima del asegurado titular : | M31: =(VLOOKUP($G$30,Tablas!$A$6:$G$72,3,TRUE))*'INGRESO DE DATOS'!$D$26+(Tablas!$Q$2) -> 144721.25 | N31: =(VLOOKUP($G$30,Tablas!$A$6:$G$72,4,TRUE))*'INGRESO DE DATOS'!$D$26+(Tablas!$Q$2) -> 103432.5 | O31: =(VLOOKUP($G$30,Tablas!$A$6:$G$72,5,TRUE))*'INGRESO DE DATOS'!$D$26+(Tablas!$Q$2) -> 82214.375 | P31: =(VLOOKUP($G$30,Tablas!$A$6:$G$72,6,TRUE))*'INGRESO DE DATOS'!$D$26+(Tablas!$Q$2) -> 70983.75 | Q31: =(VLOOKUP($G$30,Tablas!$A$6:$G$72,7,TRUE))*'INGRESO DE DATOS'!$D$26+(Tablas!$Q$2) -> 53463.125
B32: Número de hijos en la póliza : | D32: =+'INGRESO DE DATOS'!$H$17 -> 0 | E32: Edad del (de la) cónyuge : | G32: =+'INGRESO DE DATOS'!$H$19 -> 0 | K32: Prima del (de la) cónyuge: | M32: =(IF($D$30=1,0,(VLOOKUP($G$32,Tablas!$A$6:$G$72,3,TRUE))))*'INGRESO DE DATOS'!$D$26+(IF($D$30=1,0,(Tablas!$Q$2))) -> 0 | N32: =(IF($D$30=1,0,(VLOOKUP($G$32,Tablas!$A$6:$G$72,4,TRUE))))*'INGRESO DE DATOS'!$D$26+(IF($D$30=1,0,(Tablas!$Q$2))) -> 0 | O32: =(IF($D$30=1,0,(VLOOKUP($G$32,Tablas!$A$6:$G$72,5,TRUE))))*'INGRESO DE DATOS'!$D$26+(IF($D$30=1,0,(Tablas!$Q$2))) -> 0 | P32: =(IF($D$30=1,0,(VLOOKUP($G$32,Tablas!$A$6:$G$72,6,TRUE))))*'INGRESO DE DATOS'!$D$26+(IF($D$30=1,0,(Tablas!$Q$2))) -> 0 | Q32: =(IF($D$30=1,0,(VLOOKUP($G$32,Tablas!$A$6:$G$72,7,TRUE))))*'INGRESO DE DATOS'!$D$26+(IF($D$30=1,0,(Tablas!$Q$2))) -> 0
K33: Prima del (de los) Hijo(s) : | M33: =IF($D$32=0,0,(VLOOKUP($D$32,Tablas!$A$73:$G$75,3,TRUE)))*'INGRESO DE DATOS'!$D$26 -> 0 | N33: =IF($D$32=0,0,(VLOOKUP($D$32,Tablas!$A$73:$G$75,4,TRUE)))*'INGRESO DE DATOS'!$D$26 -> 0 | O33: =IF($D$32=0,0,(VLOOKUP($D$32,Tablas!$A$73:$G$75,5,TRUE)))*'INGRESO DE DATOS'!$D$26 -> 0 | P33: =IF($D$32=0,0,(VLOOKUP($D$32,Tablas!$A$73:$G$75,6,TRUE)))*'INGRESO DE DATOS'!$D$26 -> 0 | Q33: =IF($D$32=0,0,(VLOOKUP($D$32,Tablas!$A$73:$G$75,7,TRUE)))*'INGRESO DE DATOS'!$D$26 -> 0
B34: FECHA DE COTIZACION : | D34: =NOW() -> 2024-07-10T10:56:45.210 | F34: FALSE | K34: Total otros dependientes | M34: =Tablas!Q7*'INGRESO DE DATOS'!$D$26 -> 0 | N34: =Tablas!R7*'INGRESO DE DATOS'!$D$26 -> 0 | O34: =Tablas!S7*'INGRESO DE DATOS'!$D$26 -> 0 | P34: =Tablas!T7*'INGRESO DE DATOS'!$D$26 -> 0 | Q34: =Tablas!U7*'INGRESO DE DATOS'!$D$26 -> 0
K35: TOTAL PRIMA NETA : | M35: =SUM(M31:M34) -> 144721.25 | N35: =SUM(N31:N34) -> 103432.5 | O35: 82214.375 | P35: 70983.75 | Q35: 53463.125
K36: Costo administrativo anual : | M36: 937.5 | N36: 937.5 | O36: 937.5 | P36: 937.5 | Q36: 937.5
K37: IVA (16%) : | M37: =SUM(M35:M36)*16% -> 23305.4 | N37: =SUM(N35:N36)*16% -> 16699.2 | O37: =SUM(O35:O36)*16% -> 13304.3 | P37: 11507.4 | Q37: 8704.1
K38: =IF('INGRESO DE DATOS'!$D$26=0.95,"Costo total, (-5% de descuento)",IF('INGRESO DE DATOS'!$D$26=0.85,"Costo total, (-15% de descuento)",IF('INGRESO DE DATOS'!$D$26=0.9,"Costo total, (-10% de descuento)","Gran total anual"))) -> Costo total, (-15% de descuento) | M38: =SUM(M35:M37) -> 168964.15 | N38: =SUM(N35:N37) -> 121069.2 | O38: =SUM(O35:O37) -> 96456.175 | P38: 83428.65 | Q38: 63104.725
K40: TARIFAS SEMESTRALES
K41: Prima del asegurado titular : | M41: =M31*(1+Tablas!$K$4) -> 144721.25 | N41: =N31*(1+Tablas!$K$4) -> 103432.5 | O41: =O31*(1+Tablas!$K$4) -> 82214.375 | P41: =P31*(1+Tablas!$K$4) -> 70983.75 | Q41: =Q31*(1+Tablas!$K$4) -> 53463.125
K42: Prima del (de la) cónyuge: | M42: =M32*(1+Tablas!$K$4) -> 0 | N42: =N32*(1+Tablas!$K$4) -> 0 | O42: =O32*(1+Tablas!$K$4) -> 0 | P42: =P32*(1+Tablas!$K$4) -> 0 | Q42: =Q32*(1+Tablas!$K$4) -> 0
K43: Prima del (de los) Hijo (s) : | M43: =M33*(1+Tablas!$K$4) -> 0 | N43: =N33*(1+Tablas!$K$4) -> 0 | O43: =O33*(1+Tablas!$K$4) -> 0 | P43: =P33*(1+Tablas!$K$4) -> 0 | Q43: =Q33*(1+Tablas!$K$4) -> 0
K44: Total otros dependientes | M44: =M34*(1+Tablas!$K$4) -> 0 | N44: =N34*(1+Tablas!$K$4) -> 0 | O44: =O34*(1+Tablas!$K$4) -> 0 | P44: =P34*(1+Tablas!$K$4) -> 0 | Q44: =Q34*(1+Tablas!$K$4) -> 0
K45: TOTAL PRIMA NETA : | M45: =SUM(M41:M44) -> 144721.25 | N45: =SUM(N41:N44) -> 103432.5 | O45: 82214.375 | P45: 70983.75 | Q45: =SUM(Q41:Q44) -> 53463.125
K46: Costo administrativo anual : | M46: 937.5 | N46: 937.5 | O46: 937.5 | P46: 937.5 | Q46: 937.5
K47: IVA (16%) : | M47: =SUM(M45:M46)*16% -> 23305.4 | N47: =SUM(N45:N46)*16% -> 16699.2 | O47: 13304.3 | P47: 11507.4 | Q47: 8704.1
K48: TOTAL primera cuota : | M48: =((M45/2)+M46)*1.16 -> 85025.825 | N48: =((N45/2)+N46)*1.16 -> 61078.35 | O48: 48771.8375 | P48: 42258.075 | Q48: 32096.1125
K49: Valor segunda cuota : | M49: =M45/2*1.16 -> 83938.325 | N49: =N45/2*1.16 -> 59990.85 | O49: 47684.3375 | P49: 41170.575 | Q49: 31008.6125
K50: =K38 -> Costo total, (-15% de descuento) | M50: =M48+M49 -> 168964.15 | N50: =N48+N49 -> 121069.2 | O50: 96456.175 | P50: =P48+P49 -> 83428.65 | Q50: 63104.725
K52: TARIFAS TRIMESTRALES
K53: Prima del asegurado titular : | M53: =M31*(1+Tablas!$K$3) -> 144721.25 | N53: =N31*(1+Tablas!$K$3) -> 103432.5 | O53: =O31*(1+Tablas!$K$3) -> 82214.375 | P53: =P31*(1+Tablas!$K$3) -> 70983.75 | Q53: =Q31*(1+Tablas!$K$3) -> 53463.125
K54: Prima del (de la) cónyuge: | M54: =M32*(1+Tablas!$K$3) -> 0 | N54: =N32*(1+Tablas!$K$3) -> 0 | O54: =O32*(1+Tablas!$K$3) -> 0 | P54: =P32*(1+Tablas!$K$3) -> 0 | Q54: =Q32*(1+Tablas!$K$3) -> 0
K55: Prima del (de los) Hijo (s) : | M55: =M33*(1+Tablas!$K$3) -> 0 | N55: =N33*(1+Tablas!$K$3) -> 0 | O55: =O33*(1+Tablas!$K$3) -> 0 | P55: =P33*(1+Tablas!$K$3) -> 0 | Q55: =Q33*(1+Tablas!$K$3) -> 0
K56: Total otros dependientes | M56: =M34*(1+Tablas!$K$3) -> 0 | N56: =N34*(1+Tablas!$K$3) -> 0 | O56: =O34*(1+Tablas!$K$3) -> 0 | P56: =P34*(1+Tablas!$K$3) -> 0 | Q56: =Q34*(1+Tablas!$K$3) -> 0
K57: TOTAL PRIMA NETA : | M57: =SUM(M53:M56) -> 144721.25 | N57: =SUM(N53:N56) -> 103432.5 | O57: 82214.375 | P57: 70983.75 | Q57: 53463.125
K58: Costo administrativo anual : | M58: 937.5 | N58: 937.5 | O58: 937.5 | P58: 937.5 | Q58: 937.5
K59: IVA (16%) : | M59: =SUM(M57:M58)*16% -> 23305.4 | N59: =SUM(N57:N58)*16% -> 16699.2 | O59: 13304.3 | P59: 11507.4 | Q59: 8704.1
K60: TOTAL primera cuota : | M60: =((M57/4)+M58)*1.16 -> 43056.6625 | N60: =((N57/4)+N58)*1.16 -> 31082.925 | O60: 24929.66875 | P60: 21672.7875 | Q60: 16591.80625
K61: Valor cuota trimestral 2 a 4: | M61: =M57/4*1.16 -> 41969.1625 | N61: =N57/4*1.16 -> 29995.425 | O61: 23842.16875 | P61: 20585.2875 | Q61: 15504.30625
K62: =K50 -> Costo total, (-15% de descuento) | M62: =M60+(M61*3) -> 168964.15 | N62: =N60+(N61*3) -> 121069.2 | O62: 96456.175 | P62: 83428.65 | Q62: 63104.725
K64: TARIFAS MENSUALES
K65: Prima del asegurado titular : | M65: =M31*(1+Tablas!$K$2) -> 144721.25 | N65: =N31*(1+Tablas!$K$2) -> 103432.5 | O65: =O31*(1+Tablas!$K$2) -> 82214.375 | P65: =P31*(1+Tablas!$K$2) -> 70983.75 | Q65: =Q31*(1+Tablas!$K$2) -> 53463.125
B66: Tarifas validas a partir del 1 de marzo al 31 de diciembre del 2024. | K66: Prima del (de la) cónyuge: | M66: =M32*(1+Tablas!$K$2) -> 0 | N66: =N32*(1+Tablas!$K$2) -> 0 | O66: =O32*(1+Tablas!$K$2) -> 0 | P66: =P32*(1+Tablas!$K$2) -> 0 | Q66: =Q32*(1+Tablas!$K$2) -> 0
B67: Promociones válidas al 31 de diciembre de 2024. | K67: Prima del (de los) Hijo (s) : | M67: =M33*(1+Tablas!$K$2) -> 0 | N67: =N33*(1+Tablas!$K$2) -> 0 | O67: =O33*(1+Tablas!$K$2) -> 0 | P67: =P33*(1+Tablas!$K$2) -> 0 | Q67: =Q33*(1+Tablas!$K$2) -> 0
B68: El 10% de descuento en productos Globales sobre prima neta será aplicable durante toda la vida de la póliza, siempre y cuando el asegurado no haga cambios en el plan y deducibles contratados. | K68: Total otros dependientes | M68: =M34*(1+Tablas!$K$2) -> 0 | N68: =N34*(1+Tablas!$K$2) -> 0 | O68: =O34*(1+Tablas!$K$2) -> 0 | P68: =P34*(1+Tablas!$K$2) -> 0 | Q68: =Q34*(1+Tablas!$K$2) -> 0
B69: 6 meses sin intereses sin cargo al agente para modalidad de pago anual durante el primer año póliza con tarjetas de crédito participantes: Afirme, Azteca, Bajío, Banjercito, Banorte, Banregio, BBVA, Citibanamex, Famsa, HSBC, Inbursa, Invex, IXE, Liverpool, Mifel, Multiva, Santander, Scotiabank, Sociedad de Facilidades Multirotativas y American Express. Promoción válida sólo para tarjetas emitidas en la República Mexicana. | K69: TOTAL PRIMA NETA : | M69: =SUM(M65:M68) -> 144721.25 | N69: =SUM(N65:N68) -> 103432.5 | O69: 82214.375 | P69: 70983.75 | Q69: =SUM(Q65:Q68) -> 53463.125
B70: En caso de que el asegurado elija la promoción “Sin costo por pago fraccionado” no podrá optar por la promoción a meses sin intereses. | K70: Costo administrativo anual : | M70: 937.5 | N70: 937.5 | O70: 937.5 | P70: 937.5 | Q70: 937.5
B71: Las pólizas contratadas cuentan con limitaciones y exclusiones las cuáles pueden ser consultadas en www.bupasalud.com.mx Para más información, llámanos al 55 5202-1701 ext 4 o envíanos un correo a: ventasdirectas@bupa.com.mx | K71: IVA (16%) : | M71: =SUM(M69:M70)*16% -> 23305.4 | N71: =SUM(N69:N70)*16% -> 16699.2 | O71: 13304.3 | P71: 11507.4 | Q71: 8704.1
B72: La presente cotización es de carácter informativo, no constituye una solicitud de seguro y/o el monto de la prima definitiva y/o las condiciones de la misma y/o una oferta de aseguramiento en términos del artículo 5to de la Ley Sobre el Contrato de Seguro. La emisión de la póliza asícomo posibles cambios en la tarifa están sujetos a valoración del riesgo de acuerdo con las políticas de Suscripción de Bupa México y es susceptible de modificaciones, por lo que Bupa podrá aceptar o negar el aseguramiento del riesgo propuesto. | K72: TOTAL primera cuota : | M72: =((M69/12)+M70)*1.16 -> 15077.22083 | N72: =((N69/12)+N70)*1.16 -> 11085.975 | O72: 9034.889583 | P72: 7949.2625 | Q72: 6255.602083
K73: Valor cuota mensual 2 a 12 : | M73: =M69/12*1.16 -> 13989.72083 | N73: =N69/12*1.16 -> 9998.475 | O73: 7947.389583 | P73: 6861.7625 | Q73: 5168.102083
K74: =K62 -> Costo total, (-15% de descuento) | M74: =M72+(M73*11) -> 168964.15 | N74: =N72+(N73*11) -> 121069.2 | O74: =O72+(O73*11) -> 96456.175 | P74: =P72+(P73*11) -> 83428.65 | Q74: =Q72+(Q73*11) -> 63104.725

Sheet Global Ultimate Health Plan
N19: FALSE
B20: Nombre del asegurado titular : | C20: =+'INGRESO DE DATOS'!$D$15 -> JUAN VIDAL | L20: Deducibles | N20: PLAN 1 | O20: PLAN 2 | P20: PLAN 3
L21: Dentro del país de residencia | N21: 0 | O21: 1000 | P21: 2000
B22: Agencia / Agente : | C22: =+'INGRESO DE DATOS'!$D$29 -> Nombre del Agente | L22: Fuera del país de residencia | N22: 0 | O22: 1000 | P22: 2000
B24: Número de adultos en la póliza : | D24: =+'INGRESO DE DATOS'!$D$17 -> 1 | E24: Edad del asegurado titular : | G24: =+'INGRESO DE DATOS'!$D$19 -> 18 | H24: =VLOOKUP($D$24,Tablas!A1503:B1504,2,0) -> 0 | L24: TARIFAS ANUALES
L25: Prima del asegurado titular : | N25: =(VLOOKUP($G$24,Tablas!$A$1205:$G$1271,3,TRUE))*'INGRESO DE DATOS'!$D$26+(Tablas!$Q$2) -> 331360 | O25: =(VLOOKUP($G$24,Tablas!$A$1205:$G$1271,4,TRUE))*'INGRESO DE DATOS'!$D$26+(Tablas!$Q$2) -> 211276.25 | P25: =(VLOOKUP($G$24,Tablas!$A$1205:$G$1271,5,TRUE))*'INGRESO DE DATOS'!$D$26+(Tablas!$Q$2) -> 151967.5
B26: Número de hijos en la póliza : | D26: =+'INGRESO DE DATOS'!$H$17 -> 0 | E26: Edad del (de la) cónyuge : | G26: =+'INGRESO DE DATOS'!$H$19 -> 0 | L26: Prima del (de la) cónyuge: | N26: =(IF($D$24=1,0,(VLOOKUP($G$26,Tablas!$A$1205:$G$1271,3,TRUE))))*'INGRESO DE DATOS'!$D$26+(IF($D$24=1,0,(Tablas!$Q$2))) -> 0 | O26: =(IF($D$24=1,0,(VLOOKUP($G$26,Tablas!$A$1205:$G$1271,4,TRUE))))*'INGRESO DE DATOS'!$D$26+(IF($D$24=1,0,(Tablas!$Q$2))) -> 0 | P26: =(IF($D$24=1,0,(VLOOKUP($G$26,Tablas!$A$1205:$G$1271,5,TRUE))))*'INGRESO DE DATOS'!$D$26+(IF($D$24=1,0,(Tablas!$Q$2))) -> 0
L27: Prima del (de los) Hijo (s) : | N27: =IF($D$26=0,0,(VLOOKUP($D$26,Tablas!$A$1272:$G$1274,3,TRUE)))*'INGRESO DE DATOS'!$D$26 -> 0 | O27: =IF($D$26=0,0,(VLOOKUP($D$26,Tablas!$A$1272:$G$1274,4,TRUE)))*'INGRESO DE DATOS'!$D$26 -> 0 | P27: =IF($D$26=0,0,(VLOOKUP($D$26,Tablas!$A$1272:$G$1274,5,TRUE)))*'INGRESO DE DATOS'!$D$26 -> 0
B28: FECHA DE COTIZACION : | D28: =NOW() -> 2024-07-10T10:56:45.210 | L28: Total otros dependientes | N28: =Tablas!Q1206*'INGRESO DE DATOS'!$D$26 -> 0 | O28: =Tablas!R1206*'INGRESO DE DATOS'!$D$26 -> 0 | P28: =Tablas!S1206*'INGRESO DE DATOS'!$D$26 -> 0
L29: TOTAL PRIMA NETA : | N29: =SUM(N25:N28) -> 331360 | O29: =SUM(O25:O28) -> 211276.25 | P29: 151967.5
L30: Costo administrativo anual : | N30: 937.5 | O30: 937.5 | P30: 937.5
L31: IVA (16%) : | N31: =+N29*16% -> 53017.6 | O31: =+O29*16% -> 33804.2 | P31: =+P29*16% -> 24314.8
L32: =IF('INGRESO DE DATOS'!$D$26=0.95,"Costo total, (-5% de descuento)",IF('INGRESO DE DATOS'!$D$26=0.85,"Costo total, (-15% de descuento)",IF('INGRESO DE DATOS'!$D$26=0.9,"Costo total, (-10% de descuento)","Gran total anual"))) -> Costo total, (-15% de descuento) | N32: =SUM(N29:N31) + N30*0.16 -> 385465.1 | O32: =SUM(O29:O31) + O30*0.16 -> 246167.95 | P32: 177369.8
L34: TARIFAS SEMESTRALES
L35: Prima del asegurado titular : | N35: =N25*(1+Tablas!$K$4) -> 331360 | O35: =O25*(1+Tablas!$K$4) -> 211276.25 | P35: =P25*(1+Tablas!$K$4) -> 151967.5
L36: Prima del (de la) cónyuge: | N36: =N26*(1+Tablas!$K$4) -> 0 | O36: =O26*(1+Tablas!$K$4) -> 0 | P36: =P26*(1+Tablas!$K$4) -> 0
L37: Prima del (de los) Hijo (s) : | N37: =N27*(1+Tablas!$K$4) -> 0 | O37: =O27*(1+Tablas!$K$4) -> 0 | P37: =P27*(1+Tablas!$K$4) -> 0
L38: Total otros dependientes | N38: =N28*(1+Tablas!$K$4) -> 0 | O38: =O28*(1+Tablas!$K$4) -> 0 | P38: =P28*(1+Tablas!$K$4) -> 0
L39: TOTAL PRIMA NETA : | N39: =SUM(N35:N38) -> 331360 | O39: =SUM(O35:O38) -> 211276.25 | P39: 151967.5
L40: Costo administrativo anual : | N40: 937.5 | O40: 937.5 | P40: 937.5
L41: IVA (16%) : | N41: =SUM(N39:N40)*16% -> 53167.6 | O41: =SUM(O39:O40)*16% -> 33954.2 | P41: 24464.8
L42: TOTAL primera cuota : | N42: =((N39/2)+N40)*1.16 -> 193276.3 | O42: =((O39/2)+O40)*1.16 -> 123627.725 | P42: 89228.65
L43: Valor segunda cuota : | N43: =N39/2*1.16 -> 192188.8 | O43: =O39/2*1.16 -> 122540.225 | P43: 88141.15
L44: =L32 -> Costo total, (-15% de descuento) | N44: =N42+N43 -> 385465.1 | O44: =O42+O43 -> 246167.95 | P44: 177369.8
L46: TARIFAS TRIMESTRALES
L47: Prima del asegurado titular : | N47: =N25*(1+Tablas!$K$3) -> 331360 | O47: =O25*(1+Tablas!$K$3) -> 211276.25 | P47: =P25*(1+Tablas!$K$3) -> 151967.5
L48: Prima del (de la) cónyuge: | N48: =N26*(1+Tablas!$K$3) -> 0 | O48: =O26*(1+Tablas!$K$3) -> 0 | P48: =P26*(1+Tablas!$K$3) -> 0
L49: Prima del (de los) Hijo (s) : | N49: =N27*(1+Tablas!$K$3) -> 0 | O49: =O27*(1+Tablas!$K$3) -> 0 | P49: =P27*(1+Tablas!$K$3) -> 0
L50: Total otros dependientes | N50: =N28*(1+Tablas!$K$3) -> 0 | O50: =O28*(1+Tablas!$K$3) -> 0 | P50: =P28*(1+Tablas!$K$3) -> 0
L51: TOTAL PRIMA NETA : | N51: =SUM(N47:N50) -> 331360 | O51: =SUM(O47:O50) -> 211276.25 | P51: 151967.5
L52: Costo administrativo anual : | N52: 937.5 | O52: 937.5 | P52: 937.5
L53: IVA (16%) : | N53: =+N51*16% -> 53017.6 | O53: =+O51*16% -> 33804.2 | P53: =+P51*16% -> 24314.8
L54: TOTAL primera cuota : | N54: =((N51/4)+N52)*1.16 -> 97181.9 | O54: =((O51/4)+O52)*1.16 -> 62357.6125 | P54: 45158.075
L55: Valor cuota trimestral 2 a 4: | N55: =N51/4*1.16 -> 96094.4 | O55: =O51/4*1.16 -> 61270.1125 | P55: 44070.575
L56: =L44 -> Costo total, (-15% de descuento) | N56: =N54+(N55*3) -> 385465.1 | O56: =O54+(O55*3) -> 246167.95 | P56: 177369.8
L58: TARIFAS MENSUALES
L59: Prima del asegurado titular : | N59: =N25*(1+Tablas!$K$2) -> 331360 | O59: =O25*(1+Tablas!$K$2) -> 211276.25 | P59: =P25*(1+Tablas!$K$2) -> 151967.5
B60: Tarifas validas a partir del 1 de marzo al 31 de diciembre del 2024. | L60: Prima del (de la) cónyuge: | N60: =N26*(1+Tablas!$K$2) -> 0 | O60: =O26*(1+Tablas!$K$2) -> 0 | P60: =P26*(1+Tablas!$K$2) -> 0
B61: Promociones válidas al 31 de diciembre de 2024. | L61: Prima del (de los) Hijo (s) : | N61: =N27*(1+Tablas!$K$2) -> 0 | O61: =O27*(1+Tablas!$K$2) -> 0 | P61: =P27*(1+Tablas!$K$2) -> 0
B62: El 10% de descuento en productos Globales sobre prima neta será aplicable durante toda la vida de la póliza, siempre y cuando el asegurado no haga cambios en el plan y deducibles contratados. | L62: Total otros dependientes | N62: =N28*(1+Tablas!$K$2) -> 0 | O62: =O28*(1+Tablas!$K$2) -> 0 | P62: =P28*(1+Tablas!$K$2) -> 0
B63: 6 meses sin intereses sin cargo al agente para modalidad de pago anual durante el primer año póliza con tarjetas de crédito participantes: Afirme, Azteca, Bajío, Banjercito, Banorte, Banregio, BBVA, Citibanamex, Famsa, HSBC, Inbursa, Invex, IXE, Liverpool, Mifel, Multiva, Santander, Scotiabank, Sociedad de Facilidades Multirotativas y American Express. Promoción válida sólo para tarjetas emitidas en la República Mexicana. | L63: TOTAL PRIMA NETA : | N63: =SUM(N59:N62) -> 331360 | O63: =SUM(O59:O62) -> 211276.25 | P63: 151967.5
B64: En caso de que el asegurado elija la promoción “Sin costo por pago fraccionado” no podrá optar por la promoción a meses sin intereses. | L64: Costo administrativo anual : | N64: 937.5 | O64: 937.5 | P64: 937.5
B65: Las pólizas contratadas cuentan con limitaciones y exclusiones las cuáles pueden ser consultadas en www.bupasalud.com.mx Para más información, llámanos al 55 5202-1701 ext 4 o envíanos un correo a: ventasdirectas@bupa.com.mx | L65: IVA (16%) : | N65: =+N63*16% -> 53017.6 | O65: =+O63*16% -> 33804.2 | P65: =+P63*16% -> 24314.8
B66: La presente cotización es de carácter informativo, no constituye una solicitud de seguro y/o el monto de la prima definitiva y/o las condiciones de la misma y/o una oferta de aseguramiento en términos del artículo 5to de la Ley Sobre el Contrato de Seguro. La emisión de la póliza asícomo posibles cambios en la tarifa están sujetos a valoración del riesgo de acuerdo con las políticas de Suscripción de Bupa México y es susceptible de modificaciones, por lo que Bupa podrá aceptar o negar el aseguramiento del riesgo propuesto. | L66: TOTAL primera cuota : | N66: =((N63/12)+N64)*1.16 -> 33118.96667 | O66: =((O63/12)+O64)*1.16 -> 21510.87083 | P66: =((P63/12)+P64)*1.16 -> 15777.69167
L67: Valor cuota mensual 2 a 12 : | N67: =N63/12*1.16 -> 32031.46667 | O67: =O63/12*1.16 -> 20423.37083 | P67: 14690.19167
L68: =L56 -> Costo total, (-15% de descuento) | N68: =N66+(N67*11) -> 385465.1 | O68: =O66+(O67*11) -> 246167.95 | P68: =P66+(P67*11) -> 177369.8

Sheet Resumen tarifas
A17: Cotización de Seguro Médico - Bupa Global Health Plans
A19: Nombre del asegurado titular : | C19: =+'INGRESO DE DATOS'!$D$15 -> JUAN VIDAL
A21: Agencia / Agente : | C21: =+'INGRESO DE DATOS'!$D$29 -> Nombre del Agente
A23: Número de adultos en la póliza : | C23: ='INGRESO DE DATOS'!D17 -> 1 | E23: Edad del asegurado titular : | G23: ='INGRESO DE DATOS'!D19 -> 18
A26: Número de hijos en la póliza : | C26: ='INGRESO DE DATOS'!H17 -> 0 | E26: Edad del (de la) cónyuge : | G26: ='INGRESO DE DATOS'!H19 -> 0
D29: FECHA DE COTIZACION : | E29: =NOW() -> 2024-07-10T10:56:45.220
A33: Global Ultimate Health Plan
A34: Deducibles | C34: PLAN 1 | D34: PLAN 2 | E34: PLAN 3
A35: Dentro del país de residencia | C35: 0 | D35: 1000 | E35: 2000
A36: Fuera del país de residencia | C36: 0 | D36: 1000 | E36: 2000
C37: Tarifas Anuales
C38: =+'Global Ultimate Health Plan'!N32 -> 385465.1 | D38: =+'Global Ultimate Health Plan'!O32 -> 246167.95 | E38: =+'Global Ultimate Health Plan'!P32 -> 177369.8
C39: Tarifas Semestrales
C40: =+'Global Ultimate Health Plan'!N44 -> 385465.1 | D40: =+'Global Ultimate Health Plan'!O44 -> 246167.95 | E40: =+'Global Ultimate Health Plan'!P44 -> 177369.8
C41: Tarifas Trimestrales
C42: =+'Global Ultimate Health Plan'!N56 -> 385465.1 | D42: =+'Global Ultimate Health Plan'!O56 -> 246167.95 | E42: =+'Global Ultimate Health Plan'!P56 -> 177369.8
C43: Tarifas Mensuales
C44: =+'Global Ultimate Health Plan'!N68 -> 385465.1 | D44: =+'Global Ultimate Health Plan'!O68 -> 246167.95 | E44: =+'Global Ultimate Health Plan'!P68 -> 177369.8
A46: Global Elite Health Plan
A47: Deducibles | C47: PLAN 1 | D47: PLAN 2 | E47: PLAN 3 | F47: PLAN 4 | G47: PLAN 5
A48: Dentro del país de residencia | C48: 1000 | D48: 2000 | E48: 3500 | F48: 5000 | G48: 10000
A49: Fuera del país de residencia | C49: 1000 | D49: 2000 | E49: 3500 | F49: 5000 | G49: 10000
C50: Tarifas Anuales
C51: =+'Global Elite Health Plan'!M38 -> 168964.15 | D51: =+'Global Elite Health Plan'!N38 -> 121069.2 | E51: =+'Global Elite Health Plan'!O38 -> 96456.175 | F51: =+'Global Elite Health Plan'!P38 -> 83428.65 | G51: =+'Global Elite Health Plan'!Q38 -> 63104.725
C52: Tarifas Semestrales
C53: =+'Global Elite Health Plan'!M50 -> 168964.15 | D53: =+'Global Elite Health Plan'!N50 -> 121069.2 | E53: =+'Global Elite Health Plan'!O50 -> 96456.175 | F53: =+'Global Elite Health Plan'!P50 -> 83428.65 | G53: =+'Global Elite Health Plan'!Q50 -> 63104.725
C54: Tarifas Trimestrales
C55: =+'Global Elite Health Plan'!M62 -> 168964.15 | D55: =+'Global Elite Health Plan'!N62 -> 121069.2 | E55: =+'Global Elite Health Plan'!O62 -> 96456.175 | F55: =+'Global Elite Health Plan'!P62 -> 83428.65 | G55: =+'Global Elite Health Plan'!Q62 -> 63104.725
C56: Tarifas Mensuales
C57: =+'Global Elite Health Plan'!M74 -> 168964.15 | D57: =+'Global Elite Health Plan'!N74 -> 121069.2 | E57: =+'Global Elite Health Plan'!O74 -> 96456.175 | F57: =+'Global Elite Health Plan'!P74 -> 83428.65 | G57: =+'Global Elite Health Plan'!Q74 -> 63104.725
A59: Global Premier Health Plan
A60: Deducibles | C60: PLAN 1 | D60: PLAN 2 | E60: PLAN 3 | F60: PLAN 4
A61: Dentro del país de residencia | C61: 1000 | D61: 2000 | E61: 5000 | F61: 10000
A62: Fuera del país de residencia | C62: 1000 | D62: 2000 | E62: 5000 | F62: 10000
C63: Tarifas Anuales
C64: =+'Global Premier Health Plan'!N48 -> 110297.15 | D64: =+'Global Premier Health Plan'!O48 -> 80137.875 | E64: =+'Global Premier Health Plan'!P48 -> 56436.9 | F64: =+'Global Premier Health Plan'!Q48 -> 43039.625
C65: Tarifas Semestrales
C66: =+'Global Premier Health Plan'!N60 -> 110297.15 | D66: =+'Global Premier Health Plan'!O60 -> 80137.875 | E66: =+'Global Premier Health Plan'!P60 -> 56436.9 | F66: =+'Global Premier Health Plan'!Q60 -> 43039.625
C67: Tarifas Trimestrales
C68: =+'Global Premier Health Plan'!N72 -> 110297.15 | D68: =+'Global Premier Health Plan'!O72 -> 80137.875 | E68: =+'Global Premier Health Plan'!P72 -> 56436.9 | F68: =+'Global Premier Health Plan'!Q72 -> 43039.625
C69: Tarifas Mensuales
C70: =+'Global Premier Health Plan'!N84 -> 110297.15 | D70: =+'Global Premier Health Plan'!O84 -> 80137.875 | E70: =+'Global Premier Health Plan'!P84 -> 56436.9 | F70: =+'Global Premier Health Plan'!Q84 -> 43039.625
A72: Global Select Health Plan
A73: ESTE PRODUCTO NO CUENTA CON COBERTURA DE MATERNIDAD
A74: Deducibles | C74: PLAN A | D74: PLAN 1 | E74: PLAN 2 | F74: PLAN 3 | G74: PLAN 4
A75: Dentro del país de residencia | C75: 2000 | D75: 3500 | E75: 5000 | F75: 10000 | G75: 20000
A76: Fuera del país de residencia | C76: 2000 | D76: 3500 | E76: 5000 | F76: 10000 | G76: 20000
C77: Tarifas Anuales
C78: =+'Global Select Health Plan'!M45 -> 51778.05 | D78: =+'Global Select Health Plan'!N45 -> 44013.3 | E78: =+'Global Select Health Plan'!O45 -> 39120.275 | F78: =+'Global Select Health Plan'!P45 -> 26696.675 | G78: =+'Global Select Health Plan'!Q45 -> 21409.25
C79: Tarifas Semestrales
C80: =+'Global Select Health Plan'!M57 -> 51778.05 | D80: =+'Global Select Health Plan'!N57 -> 44013.3 | E80: =+'Global Select Health Plan'!O57 -> 39120.275 | F80: =+'Global Select Health Plan'!P57 -> 26696.675 | G80: =+'Global Select Health Plan'!Q57 -> 21409.25
C81: Tarifas Trimestrales
C82: =+'Global Select Health Plan'!M69 -> 51778.05 | D82: =+'Global Select Health Plan'!N69 -> 44013.3 | E82: =+'Global Select Health Plan'!O69 -> 39120.275 | F82: =+'Global Select Health Plan'!P69 -> 26696.675 | G82: =+'Global Select Health Plan'!Q69 -> 21409.25
C83: Tarifas Mensuales
C84: =+'Global Select Health Plan'!M81 -> 51778.05 | D84: =+'Global Select Health Plan'!N81 -> 44013.3 | E84: =+'Global Select Health Plan'!O81 -> 39120.275 | F84: =+'Global Select Health Plan'!P81 -> 26696.675 | G84: =+'Global Select Health Plan'!Q81 -> 21409.25
A86: Global Select PE Health Plan
A87: ESTE PRODUCTO NO CUENTA CON COBERTURA DE MATERNIDAD, NO APLICA DESCUENTO ESPECIAL
A88: Deducibles | C88: PLAN A | D88: PLAN 1 | E88: PLAN 2 | F88: PLAN 3 | G88: PLAN 4
A89: Dentro del país de residencia | C89: 2000 | D89: 3500 | E89: 5000 | F89: 10000 | G89: 20000
A90: Fuera del país de residencia | C90: 2000 | D90: 3500 | E90: 5000 | F90: 10000 | G90: 20000
C91: Tarifas Anuales
C92: =+'Global Select PE Health Plan'!M45 -> 48836 | D92: =+'Global Select PE Health Plan'!N45 -> 41542.5 | E92: =+'Global Select PE Health Plan'!O45 -> 36917 | F92: =+'Global Select PE Health Plan'!P45 -> 25230 | G92: =+'Global Select PE Health Plan'!Q45 -> 20256.5
C93: Tarifas Semestrales
C94: =+'Global Select PE Health Plan'!M57 -> 48836 | D94: =+'Global Select PE Health Plan'!N57 -> 41542.5 | E94: =+'Global Select PE Health Plan'!O57 -> 36917 | F94: =+'Global Select PE Health Plan'!P57 -> 25230 | G94: =+'Global Select PE Health Plan'!Q57 -> 20256.5
C95: Tarifas Trimestrales
C96: =+'Global Select PE Health Plan'!M69 -> 48836 | D96: =+'Global Select PE Health Plan'!N69 -> 41542.5 | E96: =+'Global Select PE Health Plan'!O69 -> 36917 | F96: =+'Global Select PE Health Plan'!P69 -> 25230 | G96: =+'Global Select PE Health Plan'!Q69 -> 20256.5
C97: Tarifas Mensuales
C98: =+'Global Select PE Health Plan'!M81 -> 48836 | D98: =+'Global Select PE Health Plan'!N81 -> 41542.5 | E98: =+'Global Select PE Health Plan'!O81 -> 36917 | F98: =+'Global Select PE Health Plan'!P81 -> 25230 | G98: =+'Global Select PE Health Plan'!Q81 -> 20256.5
A100: Este plan cuenta con los siguientes periodos de espera adicionales:
A101: PERÍODOS DE ESPERA
A102: Padecimientos de rodilla, ácido-pépticos, columna vertebral, nariz, senos paranasales, amígdalas, adenoides, hemorroides, hernias, tumoraciones mamarias (benignas y/o malignas), padecimientos anorrectales, prostáticos, ginecológicos, várices, insuficiencia del piso perineal, padecimientos de la vesícula y vías biliares, enfermedades articulares de las falanges de los pies, cataratas, litiasis renal y en vías urinarias. | G102: 6 meses
A103: Tratamiento contra el Cáncer. | G103: 6 meses
A104: Examen dental preventivo. | G104: 10 meses
A105: Trasplantes. | G105: 6 meses
A107: Cobertura de preexistencias. Quedarán cubiertas las preexistencias declaradas al momento de la solicitud con un período de espera de 2 años, independientemente de la aplicación de alguna extra prima o sobre deducible derivado de la suscripción. No aplica reconocimiento de antigüedad para reducir o eliminar los períodos de espera mencionados en este endoso.
A109: Global Major Medical Health Plan
A110: Deducibles | C110: PLAN 1 | D110: PLAN 2
A111: Dentro del país de residencia | C111: 10000 | D111: 20000
A112: Fuera del país de residencia | C112: 10000 | D112: 20000
C113: Tarifas Anuales
C114: ='Global Major Medical Health Pla'!M41 -> 35274.875 | D114: ='Global Major Medical Health Pla'!N41 -> 26240.65
C115: Tarifas Semestrales
C116: ='Global Major Medical Health Pla'!M53 -> 35274.875 | D116: ='Global Major Medical Health Pla'!N53 -> 26240.65
C117: Tarifas Trimestrales
C118: ='Global Major Medical Health Pla'!M65 -> 35274.875 | D118: ='Global Major Medical Health Pla'!N65 -> 26240.65
C119: Tarifas Mensuales
C120: ='Global Major Medical Health Pla'!M77 -> 35274.875 | D120: ='Global Major Medical Health Pla'!N77 -> 26240.65
A122: $937.5 de costo administrativo anual aplica a la primera cuota
A124: Tarifas validas a partir del 1 de marzo al 31 de diciembre del 2024.
A126: La presente cotización es de carácter informativo y no constituye el monto de la prima definitiva ni las condiciones de la misma. La emisión de la póliza está sujeta a valoración del riesgo y/o cambio en la tarifa por parte del área de Suscripción de Bupa y puede tener modificaciones por lo que no expresa compromiso legal para la cobertura del seguro. Este cotizador es válido del del 1 de Marzo del 2023 al 31 de Diciembre del 2024.

Sheet Tablas (hidden)
A2: BUPA GLOBAL ELITE | I2: FACTOR MENSUAL: | K2: =IF('INGRESO DE DATOS'!E23,0,0.09) -> 0 | M2: % Anteriores | N2: 0.0925 | P2: Usamed | Q2: 625
A3: TARIFAS ANUALES | I3: FACTOR TRIMESTRAL: | K3: =IF('INGRESO DE DATOS'!E23,0,0.075) -> 0 | N3: 0.26875 | U3: 1000
A4: EDAD | I4: FACTOR SEMIANUAL: | K4: =IF('INGRESO DE DATOS'!E23,0,0.045) -> 0 | N4: 0.5225 | U4: 2 | V4: 0 | W4: 0.045
C5: 1000 | D5: 2000 | E5: 3500 | F5: 5000 | G5: 10000 | I5: THIS COLUMN IS FOR THE 5% DISCOUNT | O5: Otros dependientes panel
A6: 18 | C6: 169525 | D6: 120950 | E6: 95987.5 | F6: 82775 | G6: 62162.5 | I6: 96337.5 | J6: 69712.5 | K6: 54087.5 | L6: 47025 | M6: 36650 | O6: Edad otros dependientes | P6: ID | Q6: 1000 | R6: 2000 | S6: 3500 | T6: 5000 | U6: 10000
A7: 19 | C7: 175225 | D7: 125012.5 | E7: 99212.5 | F7: 85562.5 | G7: 64250 | I7: 100062.5 | J7: 72400 | K7: 56187.5 | L7: 48812.5 | M7: 38075 | O7: ='INGRESO DE DATOS'!$L$16 -> 0 | P7: 1 | Q7: =IF(O7>0,(IF(O7>18,VLOOKUP(O7,$A$6:$G$72,3,FALSE),Tablas!$C$6)),0) -> 0 | R7: =IF(O7>0,(IF(O7>18,VLOOKUP(O7,$A$6:$G$72,4,FALSE),Tablas!$D$6)),0) -> 0 | S7: =IF(O7>0,(IF(O7>18,VLOOKUP(O7,$A$6:$G$72,5,FALSE),Tablas!$E$6)),0) -> 0 | T7: =IF(O7>0,(IF(O7>18,VLOOKUP(O7,$A$6:$G$72,6,FALSE),Tablas!$F$6)),0) -> 0 | U7: =IF(O7>0,(IF(O7>18,VLOOKUP(O7,$A$6:$G$72,7,FALSE),Tablas!$G$6)),0) -> 0
A8: 20 | C8: 181125 | D8: 129225 | E8: 102550 | F8: 88437.5 | G8: 66412.5 | I8: 104037.5 | J8: 75275 | K8: 58425 | L8: 50775 | M8: 39575 | O8: ='INGRESO DE DATOS'!$L$17 -> 0 | P8: 2 | Q8: =IF(O8>0,(IF(O8>18,VLOOKUP(O8,$A$6:$G$72,3,FALSE),Tablas!$C$6)),0) -> 0 | R8: =IF(O8>0,(IF(O8>18,VLOOKUP(O8,$A$6:$G$72,4,FALSE),Tablas!$D$6)),0) -> 0 | S8: =IF(O8>0,(IF(O8>18,VLOOKUP(O8,$A$6:$G$72,5,FALSE),Tablas!$E$6)),0) -> 0 | T8: =IF(O8>0,(IF(O8>18,VLOOKUP(O8,$A$6:$G$72,6,FALSE),Tablas!$F$6)),0) -> 0 | U8: =IF(O8>0,(IF(O8>18,VLOOKUP(O8,$A$6:$G$72,7,FALSE),Tablas!$G$6)),0) -> 0
A9: 21 | C9: 187212.5 | D9: 133562.5 | E9: 106000 | F9: 91412.5 | G9: 68650 | I9: 107950 | J9: 78100 | K9: 60550 | L9: 52612.5 | M9: 41012.5 | O9: ='INGRESO DE DATOS'!$L$18 -> 0 | P9: 3 | Q9: =IF(O9>0,(IF(O9>18,VLOOKUP(O9,$A$6:$G$72,3,FALSE),Tablas!$C$6)),0) -> 0 | R9: =IF(O9>0,(IF(O9>18,VLOOKUP(O9,$A$6:$G$72,4,FALSE),Tablas!$D$6)),0) -> 0 | S9: =IF(O9>0,(IF(O9>18,VLOOKUP(O9,$A$6:$G$72,5,FALSE),Tablas!$E$6)),0) -> 0 | T9: =IF(O9>0,(IF(O9>18,VLOOKUP(O9,$A$6:$G$72,6,FALSE),Tablas!$F$6)),0) -> 0 | U9: =IF(O9>0,(IF(O9>18,VLOOKUP(O9,$A$6:$G$72,7,FALSE),Tablas!$G$6)),0) -> 0
A10: 22 | C10: 193512.5 | D10: 138062.5 | E10: 109562.5 | F10: 94487.5 | G10: 70962.5 | I10: 111662.5 | J10: 80750 | K10: 62612.5 | L10: 54412.5 | M10: 42400 | O10: ='INGRESO DE DATOS'!$L$19 -> 0 | P10: 4 | Q10: =IF(O10>0,(IF(O10>18,VLOOKUP(O10,$A$6:$G$72,3,FALSE),Tablas!$C$6)),0) -> 0 | R10: =IF(O10>0,(IF(O10>18,VLOOKUP(O10,$A$6:$G$72,4,FALSE),Tablas!$D$6)),0) -> 0 | S10: =IF(O10>0,(IF(O10>18,VLOOKUP(O10,$A$6:$G$72,5,FALSE),Tablas!$E$6)),0) -> 0 | T10: =IF(O10>0,(IF(O10>18,VLOOKUP(O10,$A$6:$G$72,6,FALSE),Tablas!$F$6)),0) -> 0 | U10: =IF(O10>0,(IF(O10>18,VLOOKUP(O10,$A$6:$G$72,7,FALSE),Tablas!$G$6)),0) -> 0
A11: 23 | C11: 200025 | D11: 142712.5 | E11: 113250 | F11: 97675 | G11: 73350 | I11: 115587.5 | J11: 83612.5 | K11: 64825 | L11: 56312.5 | M11: 43875 | O11: ='INGRESO DE DATOS'!$L$20 -> 0 | P11: 5 | Q11: =IF(O11>0,(IF(O11>18,VLOOKUP(O11,$A$6:$G$72,3,FALSE),Tablas!$C$6)),0) -> 0 | R11: =IF(O11>0,(IF(O11>18,VLOOKUP(O11,$A$6:$G$72,4,FALSE),Tablas!$D$6)),0) -> 0 | S11: =IF(O11>0,(IF(O11>18,VLOOKUP(O11,$A$6:$G$72,5,FALSE),Tablas!$E$6)),0) -> 0 | T11: =IF(O11>0,(IF(O11>18,VLOOKUP(O11,$A$6:$G$72,6,FALSE),Tablas!$F$6)),0) -> 0 | U11: =IF(O11>0,(IF(O11>18,VLOOKUP(O11,$A$6:$G$72,7,FALSE),Tablas!$G$6)),0) -> 0
A12: 24 | C12: 206750 | D12: 147512.5 | E12: 117062.5 | F12: 100962.5 | G12: 75812.5 | I12: 119475 | J12: 86375 | K12: 66975 | L12: 58187.5 | M12: 45312.5 | P12: Total | Q12: =SUM(Q7:Q11) -> 0 | R12: =SUM(R7:R11) -> 0 | S12: =SUM(S7:S11) -> 0 | T12: 0 | U12: 0
A13: 25 | C13: 213712.5 | D13: 152475 | E13: 121000 | F13: 104350 | G13: 78375 | I13: 123187.5 | J13: 89037.5 | K13: 69025 | L13: 59975 | M13: 46700
A14: 26 | C14: 220900 | D14: 157600 | E14: 125075 | F14: 107862.5 | G14: 81000 | I14: 127100 | J14: 91887.5 | K14: 71225 | L14: 61875 | M14: 48187.5
A15: 27 | C15: 228337.5 | D15: 162912.5 | E15: 129287.5 | F15: 111500 | G15: 83725 | I15: 131000 | J15: 94687.5 | K15: 73400 | L15: 63762.5 | M15: 49650
A16: 28 | C16: 236025 | D16: 168387.5 | E16: 133637.5 | F16: 115250 | G16: 86550 | I16: 135000 | J16: 97525 | K16: 75625 | L16: 65675 | M16: 51137.5
A17: 29 | C17: 243962.5 | D17: 174050 | E17: 138125 | F17: 119125 | G17: 89462.5 | I17: 140075 | J17: 101187.5 | K17: 78437.5 | L17: 68125 | M17: 53025
A18: 30 | C18: 252175 | D18: 179912.5 | E18: 142775 | F18: 123137.5 | G18: 92475 | I18: 145362.5 | J18: 105012.5 | K18: 81337.5 | L18: 70662.5 | M18: 55000
A19: 31 | C19: 260650 | D19: 185962.5 | E19: 147587.5 | F19: 127275 | G19: 95587.5 | I19: 150587.5 | J19: 108800 | K19: 84300 | L19: 73200 | M19: 56975
A20: 32 | C20: 269425 | D20: 192225 | E20: 152550 | F20: 131562.5 | G20: 98800 | I20: 155975 | J20: 112637.5 | K20: 87262.5 | L20: 75800 | M20: 58975
A21: 33 | C21: 278487.5 | D21: 198687.5 | E21: 157687.5 | F21: 135987.5 | G21: 102125 | I21: 159162.5 | J21: 114950 | K21: 89037.5 | L21: 77312.5 | M21: 60150
A22: 34 | C22: 289312.5 | D22: 206412.5 | E22: 163812.5 | F22: 141275 | G22: 106087.5 | I22: 162550 | J22: 117387.5 | K22: 90900 | L22: 78950 | M22: 61412.5
A23: 35 | C23: 294062.5 | D23: 209800 | E23: 166500 | F23: 143587.5 | G23: 107837.5 | I23: 165900 | J23: 119800 | K23: 92787.5 | L23: 80575 | M23: 62675
A24: 36 | C24: 298887.5 | D24: 213237.5 | E24: 169225 | F24: 145950 | G24: 109600 | I24: 169262.5 | J24: 122237.5 | K24: 94650 | L24: 82175 | M24: 63937.5
A25: 37 | C25: 303787.5 | D25: 216737.5 | E25: 172000 | F25: 148337.5 | G25: 111400 | I25: 172612.5 | J25: 124637.5 | K25: 96512.5 | L25: 83787.5 | M25: 65187.5
A26: 38 | C26: 308775 | D26: 220300 | E26: 174825 | F26: 150775 | G26: 113225 | I26: 175550 | J26: 126737.5 | K26: 98112.5 | L26: 85187.5 | M26: 66262.5
A27: 39 | C27: 313837.5 | D27: 223912.5 | E27: 177700 | F27: 153250 | G27: 115087.5 | I27: 178275 | J27: 128737.5 | K27: 99675 | L27: 86550 | M27: 67312.5
A28: 40 | C28: 318987.5 | D28: 227587.5 | E28: 180612.5 | F28: 155762.5 | G28: 116975 | I28: 181162.5 | J28: 130812.5 | K28: 101300 | L28: 87937.5 | M28: 68387.5
A29: 41 | C29: 324225 | D29: 231325 | E29: 183575 | F29: 158325 | G29: 118900 | I29: 184012.5 | J29: 132825 | K29: 102850 | L29: 89287.5 | M29: 69425
A30: 42 | C30: 329550 | D30: 235112.5 | E30: 186587.5 | F30: 160912.5 | G30: 120850 | I30: 186887.5 | J30: 134937.5 | K30: 104475 | L30: 90687.5 | M30: 70537.5
A31: 43 | C31: 334950 | D31: 238975 | E31: 189650 | F31: 163562.5 | G31: 122825 | I31: 190275 | J31: 137350 | K31: 106350 | L31: 92325 | M31: 71812.5
A32: 44 | C32: 340450 | D32: 242900 | E32: 192762.5 | F32: 166237.5 | G32: 124850 | I32: 193787.5 | J32: 139900 | K32: 108287.5 | L32: 94000 | M32: 73100
A33: 45 | C33: 346037.5 | D33: 246887.5 | E33: 195925 | F33: 168975 | G33: 126887.5 | I33: 197187.5 | J33: 142337.5 | K33: 110200 | L33: 95662.5 | M33: 74375
A34: 46 | C34: 351712.5 | D34: 250937.5 | E34: 199137.5 | F34: 171750 | G34: 128975 | I34: 200650 | J34: 144837.5 | K34: 112087.5 | L34: 97312.5 | M34: 75662.5
A35: 47 | C35: 357487.5 | D35: 255050 | E35: 202412.5 | F35: 174562.5 | G35: 131087.5 | I35: 204037.5 | J35: 147250 | K35: 113987.5 | L35: 98950 | M35: 76925
A36: 48 | C36: 363362.5 | D36: 259237.5 | E36: 205737.5 | F36: 177425 | G36: 133237.5 | I36: 208800 | J36: 150700 | K36: 117137.5 | L36: 101687.5 | M36: 79050
A37: 49 | C37: 371512.5 | D37: 265050 | E37: 210350 | F37: 181412.5 | G37: 136237.5 | I37: 213575 | J37: 154125 | K37: 120275 | L37: 104412.5 | M37: 81150
A38: 50 | C38: 385325 | D38: 274900 | E38: 218162.5 | F38: 188150 | G38: 141300 | I38: 219462.5 | J38: 158362.5 | K38: 123562.5 | L38: 107262.5 | M38: 83362.5
A39: 51 | C39: 399637.5 | D39: 285125 | E39: 226275 | F39: 195150 | G39: 146550 | I39: 225062.5 | J39: 162362.5 | K39: 126725 | L39: 110000 | M39: 85512.5
A40: 52 | C40: 414500 | D40: 295725 | E40: 234687.5 | F40: 202400 | G40: 152000 | I40: 230700 | J40: 166450 | K40: 129912.5 | L40: 112737.5 | M40: 87637.5
A41: 53 | C41: 429900 | D41: 306712.5 | E41: 243412.5 | F41: 209925 | G41: 157650 | I41: 241150 | J41: 173987.5 | K41: 135712.5 | L41: 117787.5 | M41: 91562.5
A42: 54 | C42: 445875 | D42: 318112.5 | E42: 252462.5 | F42: 217725 | G42: 163500 | I42: 251462.5 | J42: 181412.5 | K42: 141487.5 | L42: 122800 | M42: 95450
A43: 55 | C43: 462450 | D43: 329937.5 | E43: 261837.5 | F43: 225812.5 | G43: 169587.5 | I43: 261975 | J43: 188975 | K43: 147387.5 | L43: 127937.5 | M43: 99387.5
A44: 56 | C44: 479575 | D44: 342150 | E44: 271537.5 | F44: 234175 | G44: 175862.5 | I44: 272400 | J44: 196487.5 | K44: 153250 | L44: 132987.5 | M44: 103350
A45: 57 | C45: 505925 | D45: 360950 | E45: 286450 | F45: 247037.5 | G45: 185525 | I45: 282900 | J45: 204050 | K45: 159125 | L45: 138087.5 | M45: 107287.5
A46: 58 | C46: 533712.5 | D46: 380775 | E46: 302187.5 | F46: 260612.5 | G46: 195712.5 | I46: 300812.5 | J46: 216937.5 | K46: 169162.5 | L46: 146800 | M46: 114025
A47: 59 | C47: 563037.5 | D47: 401700 | E47: 318800 | F47: 274937.5 | G47: 206462.5 | I47: 318700 | J47: 229837.5 | K47: 179175 | L47: 155487.5 | M47: 120775
A48: 60 | C48: 593975 | D48: 423775 | E48: 336312.5 | F48: 290037.5 | G48: 217812.5 | I48: 336762.5 | J48: 242825 | K48: 189312.5 | L48: 164275 | M48: 127575
A49: 61 | C49: 626612.5 | D49: 447062.5 | E49: 354787.5 | F49: 305975 | G49: 229775 | I49: 354600 | J49: 255637.5 | K49: 199287.5 | L49: 172912.5 | M49: 134287.5
A50: 62 | C50: 661037.5 | D50: 471625 | E50: 374275 | F50: 322787.5 | G50: 242400 | I50: 372650 | J50: 268662.5 | K50: 209425 | L50: 181700 | M50: 141125
A51: 63 | C51: 697362.5 | D51: 497537.5 | E51: 394850 | F51: 340525 | G51: 255725 | I51: 400437.5 | J51: 288662.5 | K51: 225025 | L51: 195225 | M51: 151587.5
A52: 64 | C52: 735675 | D52: 524862.5 | E52: 416537.5 | F52: 359225 | G52: 269775 | I52: 428237.5 | J52: 308712.5 | K52: 240625 | L52: 208750 | M52: 162087.5
A53: 65 | C53: 776100 | D53: 553700 | E53: 439425 | F53: 378962.5 | G53: 284600 | I53: 456125 | J53: 328750 | K53: 256200 | L53: 222287.5 | M53: 172587.5
A54: 66 | C54: 818737.5 | D54: 584125 | E54: 463575 | F54: 399787.5 | G54: 300225 | I54: 483887.5 | J54: 348750 | K54: 271800 | L54: 235787.5 | M54: 183050
A55: 67 | C55: 863725 | D55: 616225 | E55: 489037.5 | F55: 421750 | G55: 316725 | I55: 511837.5 | J55: 368875 | K55: 287450 | L55: 249350 | M55: 193575
A56: 68 | C56: 911175 | D56: 650075 | E56: 515912.5 | F56: 444925 | G56: 334125 | I56: 550312.5 | J56: 396600 | K56: 309000 | L56: 268025 | M56: 208062.5
A57: 69 | C57: 961237.5 | D57: 685800 | E57: 544250 | F57: 469375 | G57: 352487.5 | I57: 588925 | J57: 424387.5 | K57: 330650 | L57: 286812.5 | M57: 222612.5
A58: 70 | C58: 1014050 | D58: 723475 | E58: 574162.5 | F58: 495162.5 | G58: 371850 | I58: 627587.5 | J58: 452237.5 | K58: 352325 | L58: 305587.5 | M58: 237212.5
A59: 71 | C59: 1069775 | D59: 763225 | E59: 605700 | F59: 522375 | G59: 392287.5 | I59: 666325 | J59: 480100 | K59: 374050 | L59: 324437.5 | M59: 251800
A60: 72 | C60: 1128550 | D60: 805162.5 | E60: 638987.5 | F60: 551075 | G60: 413837.5 | I60: 704950 | J60: 507912.5 | K60: 395700 | L60: 343200 | M60: 266362.5
A61: 73 | C61: 1190550 | D61: 849400 | E61: 674087.5 | F61: 581350 | G61: 436575 | I61: 750825 | J61: 540950 | K61: 421375 | L61: 365475 | M61: 283625
A62: 74 | C62: 1255962.5 | D62: 896075 | E62: 711125 | F62: 613287.5 | G62: 460562.5 | I62: 796675 | J62: 573987.5 | K62: 447100 | L62: 387787.5 | M62: 300937.5
A63: 75 | C63: 1324975 | D63: 945300 | E63: 750200 | F63: 646987.5 | G63: 485875 | I63: 842500 | J63: 606987.5 | K63: 472775 | L63: 410050 | M63: 318200
A64: 76 | C64: 1397775 | D64: 997237.5 | E64: 791425 | F64: 682537.5 | G64: 512562.5 | I64: 888400 | J64: 640000 | K64: 498512.5 | L64: 432375 | M64: 335525
A65: 77 | C65: 1474575 | D65: 1052037.5 | E65: 834900 | F65: 720037.5 | G65: 540725 | I65: 934237.5 | J65: 673000 | K65: 524187.5 | L65: 454612.5 | M65: 352762.5
A66: 78 | C66: 1555587.5 | D66: 1109837.5 | E66: 880775 | F66: 759600 | G66: 570437.5 | I66: 981025 | J66: 706700 | K66: 550400 | L66: 477362.5 | M66: 370412.5
A67: 79 | C67: 1641062.5 | D67: 1170812.5 | E67: 929175 | F67: 801325 | G67: 601775 | I67: 1028037.5 | J67: 740525 | K67: 576737.5 | L67: 500200 | M67: 388125
A68: 80 | C68: 1731225 | D68: 1235137.5 | E68: 980225 | F68: 845362.5 | G68: 634837.5 | I68: 1075075 | J68: 774425 | K68: 603150 | L68: 523112.5 | M68: 405862.5
A69: 81 | C69: 1826350 | D69: 1303000 | E69: 1034075 | F69: 891800 | G69: 669725 | I69: 1121900 | J69: 808125 | K69: 629387.5 | L69: 545875 | M69: 423537.5
A70: 82 | C70: 1926687.5 | D70: 1374600 | E70: 1090900 | F70: 940800 | G70: 706512.5 | I70: 1168887.5 | J70: 841962.5 | K70: 655737.5 | L70: 568712.5 | M70: 441237.5
A71: 83 | C71: 2032550 | D71: 1450125 | E71: 1150837.5 | F71: 992500 | G71: 745337.5 | I71: 1215912.5 | J71: 875825 | K71: 682100 | L71: 591550 | M71: 458975
A72: 84 | B72: o más | C72: 2144225 | D72: 1529800 | E72: 1214062.5 | F72: 1047025 | G72: 786287.5 | I72: 1262825 | J72: 909600 | K72: 708350 | L72: 614325 | M72: 476637.5
A73: 1 | B73: Hijo | C73: 72775 | D73: 51925 | E73: 41212.5 | F73: 35537.5 | G73: 26687.5 | I73: 39537.5 | J73: 28475 | K73: 23362.5 | L73: 20237.5 | M73: 15700
A74: 2 | B74: Hijos | C74: 114675 | D74: 81812.5 | E74: 64925 | F74: 56000 | G74: 42050 | I74: 62287.5 | J74: 44862.5 | K74: 36750 | L74: 31875 | M74: 24712.5
A75: 3 | B75: Hijos o más | C75: 167312.5 | D75: 119375 | E75: 94737.5 | F75: 81700 | G75: 61350 | I75: 90862.5 | J75: 65412.5 | K75: 53612.5 | L75: 46487.5 | M75: 36062.5
A77: BUPA GLOBAL ELITE - MENSUALES
A78: EDAD
C79: 1000 | D79: 2000 | E79: 3500
A80: 18 | C80: =C6*$K$2 -> 0 | D80: =D6*$K$2 -> 0 | E80: 0 | F80: 0 | G80: 0
A81: 19 | C81: =C7*$K$2 -> 0 | D81: 0 | E81: 0 | F81: 0 | G81: 0
A82: 20 | C82: =C8*$K$2 -> 0 | D82: 0 | E82: 0 | F82: 0 | G82: 0
A83: 21 | C83: =C9*$K$2 -> 0 | D83: 0 | E83: 0 | F83: 0 | G83: 0
A84: 22 | C84: =C10*$K$2 -> 0 | D84: 0 | E84: 0 | F84: 0 | G84: 0
A85: 23 | C85: =C11*$K$2 -> 0 | D85: 0 | E85: 0 | F85: 0 | G85: 0
A86: 24 | C86: =C12*$K$2 -> 0 | D86: 0 | E86: 0 | F86: 0 | G86: 0
A87: 25 | C87: =C13*$K$2 -> 0 | D87: 0 | E87: 0 | F87: 0 | G87: 0
A88: 26 | C88: =C14*$K$2 -> 0 | D88: 0 | E88: 0 | F88: 0 | G88: 0
A89: 27 | C89: =C15*$K$2 -> 0 | D89: 0 | E89: 0 | F89: 0 | G89: 0
A90: 28 | C90: =C16*$K$2 -> 0 | D90: 0 | E90: 0 | F90: 0 | G90: 0
A91: 29 | C91: =C17*$K$2 -> 0 | D91: 0 | E91: 0 | F91: 0 | G91: 0
A92: 30 | C92: =C18*$K$2 -> 0 | D92: 0 | E92: 0 | F92: 0 | G92: 0
A93: 31 | C93: =C19*$K$2 -> 0 | D93: 0 | E93: 0 | F93: 0 | G93: 0
A94: 32 | C94: =C20*$K$2 -> 0 | D94: 0 | E94: 0 | F94: 0 | G94: 0
A95: 33 | C95: =C21*$K$2 -> 0 | D95: 0 | E95: 0 | F95: 0 | G95: 0
A96: 34 | C96: =C22*$K$2 -> 0 | D96: 0 | E96: 0 | F96: 0 | G96: 0
A97: 35 | C97: =C23*$K$2 -> 0 | D97: 0 | E97: 0 | F97: 0 | G97: 0
A98: 36 | C98: =C24*$K$2 -> 0 | D98: 0 | E98: 0 | F98: 0 | G98: 0
A99: 37 | C99: =C25*$K$2 -> 0 | D99: 0 | E99: 0 | F99: 0 | G99: 0
A100: 38 | C100: =C26*$K$2 -> 0 | D100: 0 | E100: 0 | F100: 0 | G100: 0
A101: 39 | C101: =C27*$K$2 -> 0 | D101: 0 | E101: 0 | F101: 0 | G101: 0
A102: 40 | C102: =C28*$K$2 -> 0 | D102: 0 | E102: 0 | F102: 0 | G102: 0
A103: 41 | C103: =C29*$K$2 -> 0 | D103: 0 | E103: 0 | F103: 0 | G103: 0
A104: 42 | C104: =C30*$K$2 -> 0 | D104: 0 | E104: 0 | F104: 0 | G104: 0
A105: 43 | C105: =C31*$K$2 -> 0 | D105: 0 | E105: 0 | F105: 0 | G105: 0
A106: 44 | C106: =C32*$K$2 -> 0 | D106: 0 | E106: 0 | F106: 0 | G106: 0
A107: 45 | C107: =C33*$K$2 -> 0 | D107: 0 | E107: 0 | F107: 0 | G107: 0
A108: 46 | C108: =C34*$K$2 -> 0 | D108: 0 | E108: 0 | F108: 0 | G108: 0
A109: 47 | C109: =C35*$K$2 -> 0 | D109: 0 | E109: 0 | F109: 0 | G109: 0
A110: 48 | C110: =C36*$K$2 -> 0 | D110: 0 | E110: 0 | F110: 0 | G110: 0
A111: 49 | C111: =C37*$K$2 -> 0 | D111: 0 | E111: 0 | F111: 0 | G111: 0
A112: 50 | C112: =C38*$K$2 -> 0 | D112: 0 | E112: 0 | F112: 0 | G112: 0
A113: 51 | C113: =C39*$K$2 -> 0 | D113: 0 | E113: 0 | F113: 0 | G113: 0
A114: 52 | C114: =C40*$K$2 -> 0 | D114: 0 | E114: 0 | F114: 0 | G114: 0
A115: 53 | C115: =C41*$K$2 -> 0 | D115: 0 | E115: 0 | F115: 0 | G115: 0
A116: 54 | C116: =C42*$K$2 -> 0 | D116: 0 | E116: 0 | F116: 0 | G116: 0
A117: 55 | C117: =C43*$K$2 -> 0 | D117: 0 | E117: 0 | F117: 0 | G117: 0
A118: 56 | C118: =C44*$K$2 -> 0 | D118: 0 | E118: 0 | F118: 0 | G118: 0
A119: 57 | C119: =C45*$K$2 -> 0 | D119: 0 | E119: 0 | F119: 0 | G119: 0
A120: 58 | C120: =C46*$K$2 -> 0 | D120: 0 | E120: 0 | F120: 0 | G120: 0
A121: 59 | C121: =C47*$K$2 -> 0 | D121: 0 | E121: 0 | F121: 0 | G121: 0
A122: 60 | C122: =C48*$K$2 -> 0 | D122: 0 | E122: 0 | F122: 0 | G122: 0
A123: 61 | C123: =C49*$K$2 -> 0 | D123: 0 | E123: 0 | F123: 0 | G123: 0
A124: 62 | C124: =C50*$K$2 -> 0 | D124: 0 | E124: 0 | F124: 0 | G124: 0
A125: 63 | C125: =C51*$K$2 -> 0 | D125: 0 | E125: 0 | F125: 0 | G125: 0
A126: 64 | C126: =C52*$K$2 -> 0 | D126: 0 | E126: 0 | F126: 0 | G126: 0
A127: 65 | C127: =C53*$K$2 -> 0 | D127: 0 | E127: 0 | F127: 0 | G127: 0
A128: 66 | C128: =C54*$K$2 -> 0 | D128: 0 | E128: 0 | F128: 0 | G128: 0
A129: 67 | C129: =C55*$K$2 -> 0 | D129: 0 | E129: 0 | F129: 0 | G129: 0
A130: 68 | C130: =C56*$K$2 -> 0 | D130: 0 | E130: 0 | F130: 0 | G130: 0
A131: 69 | C131: =C57*$K$2 -> 0 | D131: 0 | E131: 0 | F131: 0 | G131: 0
A132: 70 | C132: =C58*$K$2 -> 0 | D132: 0 | E132: 0 | F132: 0 | G132: 0
A133: 71 | C133: =C59*$K$2 -> 0 | D133: 0 | E133: 0 | F133: 0 | G133: 0
A134: 72 | C134: =C60*$K$2 -> 0 | D134: 0 | E134: 0 | F134: 0 | G134: 0
A135: 73 | C135: =C61*$K$2 -> 0 | D135: 0 | E135: 0 | F135: 0 | G135: 0
A136: 74 | C136: =C62*$K$2 -> 0 | D136: 0 | E136: 0 | F136: 0 | G136: 0
A137: 75 | C137: =C63*$K$2 -> 0 | D137: 0 | E137: 0 | F137: 0 | G137: 0
A138: 76 | C138: =C64*$K$2 -> 0 | D138: 0 | E138: 0 | F138: 0 | G138: 0
A139: 77 | C139: =C65*$K$2 -> 0 | D139: 0 | E139: 0 | F139: 0 | G139: 0
A140: 78 | C140: =C66*$K$2 -> 0 | D140: 0 | E140: 0 | F140: 0 | G140: 0
A141: 79 | C141: =C67*$K$2 -> 0 | D141: 0 | E141: 0 | F141: 0 | G141: 0
A142: 80 | C142: =C68*$K$2 -> 0 | D142: 0 | E142: 0 | F142: 0 | G142: 0
A143: 81 | C143: =C69*$K$2 -> 0 | D143: 0 | E143: 0 | F143: 0 | G143: 0
A144: 82 | C144: =C70*$K$2 -> 0 | D144: 0 | E144: 0 | F144: 0 | G144: 0
A145: 83 | C145: =C71*$K$2 -> 0 | D145: 0 | E145: 0 | F145: 0 | G145: 0
A146: 84 | B146: o más | C146: =C72*$K$2 -> 0 | D146: 0 | E146: 0 | F146: 0 | G146: 0
A147: 1 | B147: Hijo | C147: =C73*$K$2 -> 0 | D147: 0 | E147: 0 | F147: 0 | G147: 0
A148: 2 | B148: Hijos | C148: =C74*$K$2 -> 0 | D148: 0 | E148: 0 | F148: 0 | G148: 0
A149: 3 | B149: Hijos o más | C149: =C75*$K$2 -> 0 | D149: 0 | E149: 0 | F149: 0 | G149: 0
A151: BUPA GLOBAL PREMIER
A152: TARIFAS ANUALES
A153: EDAD
C154: 1000 | D154: 2000 | E154: 5000 | F154: 10000 | O154: Otros dependientes panel
A155: 18 | C155: 110025 | D155: 79437.5 | E155: 55400 | F155: 41812.5 | I155: 62975 | J155: 45637.5 | K155: 32862.5 | L155: 24662.5 | N155: 59826.25 | O155: Edad otros dependientes | P155: ID | Q155: 1000 | R155: 2000 | S155: 5000 | T155: 10000
A156: 19 | C156: 113725 | D156: 82100 | E156: 57262.5 | F156: 43212.5 | I156: 65312.5 | J156: 47312.5 | K156: 34050 | L156: 25562.5 | N156: 62046.875 | O156: ='INGRESO DE DATOS'!$L$16 -> 0 | P156: 1 | Q156: =IF(O156>0,(IF(O156>18,VLOOKUP(O156,$A$155:$G$221,3,FALSE),Tablas!$C$155)),0) -> 0 | R156: =IF(O156>0,(IF(O156>18,VLOOKUP(O156,$A$155:$G$221,4,FALSE),Tablas!$D$155)),0) -> 0 | S156: =IF(O156>0,(IF(O156>18,VLOOKUP(O156,$A$155:$G$221,5,FALSE),Tablas!$E$155)),0) -> 0 | T156: =IF(O156>0,(IF(O156>18,VLOOKUP(O156,$A$155:$G$221,6,FALSE),Tablas!$F$155)),0) -> 0
A157: 20 | C157: 117550 | D157: 84875 | E157: 59187.5 | F157: 44662.5 | I157: 67862.5 | J157: 49150 | K157: 35350 | L157: 26525 | N157: 64469.375 | O157: ='INGRESO DE DATOS'!$L$17 -> 0 | P157: 2 | Q157: =IF(O157>0,(IF(O157>18,VLOOKUP(O157,$A$155:$G$221,3,FALSE),Tablas!$C$155)),0) -> 0 | R157: =IF(O157>0,(IF(O157>18,VLOOKUP(O157,$A$155:$G$221,4,FALSE),Tablas!$D$155)),0) -> 0 | S157: =IF(O157>0,(IF(O157>18,VLOOKUP(O157,$A$155:$G$221,5,FALSE),Tablas!$E$155)),0) -> 0 | T157: =IF(O157>0,(IF(O157>18,VLOOKUP(O157,$A$155:$G$221,6,FALSE),Tablas!$F$155)),0) -> 0
A158: 21 | C158: 121500 | D158: 87725 | E158: 61175 | F158: 46175 | I158: 70437.5 | J158: 51012.5 | K158: 36675 | L158: 27500 | N158: 66915.625 | O158: ='INGRESO DE DATOS'!$L$18 -> 0 | P158: 3 | Q158: =IF(O158>0,(IF(O158>18,VLOOKUP(O158,$A$155:$G$221,3,FALSE),Tablas!$C$155)),0) -> 0 | R158: =IF(O158>0,(IF(O158>18,VLOOKUP(O158,$A$155:$G$221,4,FALSE),Tablas!$D$155)),0) -> 0 | S158: =IF(O158>0,(IF(O158>18,VLOOKUP(O158,$A$155:$G$221,5,FALSE),Tablas!$E$155)),0) -> 0 | T158: =IF(O158>0,(IF(O158>18,VLOOKUP(O158,$A$155:$G$221,6,FALSE),Tablas!$F$155)),0) -> 0
A159: 22 | C159: 125587.5 | D159: 90675 | E159: 63237.5 | F159: 47725 | I159: 72825 | J159: 52712.5 | K159: 37887.5 | L159: 28412.5 | N159: 69183.75 | O159: ='INGRESO DE DATOS'!$L$19 -> 0 | P159: 4 | Q159: =IF(O159>0,(IF(O159>18,VLOOKUP(O159,$A$155:$G$221,3,FALSE),Tablas!$C$155)),0) -> 0 | R159: =IF(O159>0,(IF(O159>18,VLOOKUP(O159,$A$155:$G$221,4,FALSE),Tablas!$D$155)),0) -> 0 | S159: =IF(O159>0,(IF(O159>18,VLOOKUP(O159,$A$155:$G$221,5,FALSE),Tablas!$E$155)),0) -> 0 | T159: =IF(O159>0,(IF(O159>18,VLOOKUP(O159,$A$155:$G$221,6,FALSE),Tablas!$F$155)),0) -> 0
A160: 23 | C160: 129812.5 | D160: 93725 | E160: 65362.5 | F160: 49325 | I160: 75412.5 | J160: 54575 | K160: 39225 | L160: 29387.5 | N160: 71641.875 | O160: ='INGRESO DE DATOS'!$L$20 -> 0 | P160: 5 | Q160: =IF(O160>0,(IF(O160>18,VLOOKUP(O160,$A$155:$G$221,3,FALSE),Tablas!$C$155)),0) -> 0 | R160: =IF(O160>0,(IF(O160>18,VLOOKUP(O160,$A$155:$G$221,4,FALSE),Tablas!$D$155)),0) -> 0 | S160: =IF(O160>0,(IF(O160>18,VLOOKUP(O160,$A$155:$G$221,5,FALSE),Tablas!$E$155)),0) -> 0 | T160: =IF(O160>0,(IF(O160>18,VLOOKUP(O160,$A$155:$G$221,6,FALSE),Tablas!$F$155)),0) -> 0
A161: 24 | C161: 134187.5 | D161: 96875 | E161: 67562.5 | F161: 50987.5 | I161: 77900 | J161: 56375 | K161: 40512.5 | L161: 30350 | N161: 74005 | P161: Total | Q161: =SUM(Q156:Q160) -> 0 | R161: =SUM(R156:R160) -> 0 | S161: =SUM(S156:S160) -> 0 | T161: =SUM(T156:T160) -> 0
A162: 25 | C162: 138700 | D162: 100137.5 | E162: 69837.5 | F162: 52700 | I162: 79475 | J162: 57512.5 | K162: 41300 | L162: 30937.5 | N162: 75501.25
A163: 26 | C163: 143362.5 | D163: 103512.5 | E163: 72187.5 | F163: 54475 | I163: 82000 | J163: 59312.5 | K163: 42612.5 | L163: 31912.5 | N163: 77900
A164: 27 | C164: 148187.5 | D164: 107000 | E164: 74612.5 | F164: 56312.5 | I164: 84537.5 | J164: 61150 | K164: 43912.5 | L164: 32887.5 | N164: 80310.625
A165: 28 | C165: 153175 | D165: 110600 | E165: 77125 | F165: 58212.5 | I165: 87000 | J165: 62912.5 | K165: 45175 | L165: 33825 | N165: 82650
A166: 29 | C166: 158325 | D166: 114312.5 | E166: 79725 | F166: 60162.5 | I166: 90287.5 | J166: 65287.5 | K166: 46825 | L166: 35037.5 | N166: 85773.125
A167: 30 | C167: 163662.5 | D167: 118162.5 | E167: 82400 | F167: 62187.5 | I167: 93675 | J167: 67725 | K167: 48587.5 | L167: 36375 | N167: 88991.25
A168: 31 | C168: 169162.5 | D168: 122137.5 | E168: 85175 | F168: 64287.5 | I168: 97062.5 | J168: 70162.5 | K168: 50337.5 | L168: 37662.5 | N168: 92209.375
A169: 32 | C169: 174862.5 | D169: 126250 | E169: 88037.5 | F169: 66450 | I169: 100450 | J169: 72587.5 | K169: 52075 | L169: 38937.5 | N169: 95427.5
A170: 33 | C170: 180737.5 | D170: 130500 | E170: 91000 | F170: 68687.5 | I170: 102612.5 | J170: 74137.5 | K170: 53162.5 | L170: 39750 | N170: 97481.875
A171: 34 | C171: 186825 | D171: 134887.5 | E171: 94062.5 | F171: 70987.5 | I171: 104725 | J171: 75662.5 | K171: 54262.5 | L171: 40587.5 | N171: 99488.75
A172: 35 | C172: 190850 | D172: 137787.5 | E172: 96087.5 | F172: 72525 | I172: 106862.5 | J172: 77200 | K172: 55325 | L172: 41375 | N172: 101519.375
A173: 36 | C173: 193975 | D173: 140050 | E173: 97662.5 | F173: 73712.5 | I173: 109037.5 | J173: 78775 | K173: 56450 | L173: 42212.5 | N173: 103585.625
A174: 37 | C174: 197162.5 | D174: 142350 | E174: 99275 | F174: 74925 | I174: 111112.5 | J174: 80262.5 | K174: 57537.5 | L174: 43025 | N174: 105556.875
A175: 38 | C175: 200400 | D175: 144687.5 | E175: 100900 | F175: 76150 | I175: 113025 | J175: 81625 | K175: 58487.5 | L175: 43712.5 | N175: 107373.75
A176: 39 | C176: 203687.5 | D176: 147062.5 | E176: 102550 | F176: 77400 | I176: 115962.5 | J176: 83750 | K176: 60000 | L176: 44850 | N176: 110164.375
A177: 40 | C177: 207025 | D177: 149475 | E177: 104237.5 | F177: 78675 | I177: 117850 | J177: 85100 | K177: 61000 | L177: 45587.5 | N177: 111957.5
A178: 41 | C178: 210425 | D178: 151925 | E178: 105950 | F178: 79962.5 | I178: 119675 | J178: 86450 | K178: 61937.5 | L178: 46275 | N178: 113691.25
A179: 42 | C179: 213875 | D179: 154425 | E179: 107687.5 | F179: 81275 | I179: 121562.5 | J179: 87787.5 | K179: 62875 | L179: 47000 | N179: 115484.375
A180: 43 | C180: 217387.5 | D180: 156950 | E180: 109450 | F180: 82612.5 | I180: 123750 | J180: 89350 | K180: 64025 | L180: 47837.5 | N180: 117562.5
A181: 44 | C181: 220950 | D181: 159525 | E181: 111250 | F181: 83962.5 | I181: 126050 | J181: 90987.5 | K181: 65175 | L181: 48687.5 | N181: 119747.5
A182: 45 | C182: 224575 | D182: 162150 | E182: 113075 | F182: 85337.5 | I182: 128200 | J182: 92550 | K182: 66275 | L182: 49512.5 | N182: 121790
A183: 46 | C183: 228262.5 | D183: 164812.5 | E183: 114937.5 | F183: 86737.5 | I183: 130512.5 | J183: 94212.5 | K183: 67437.5 | L183: 50387.5 | N183: 123986.875
A184: 47 | C184: 232012.5 | D184: 167512.5 | E184: 116812.5 | F184: 88162.5 | I184: 132662.5 | J184: 95762.5 | K184: 68550 | L184: 51225 | N184: 126029.375
A185: 48 | C185: 235812.5 | D185: 170262.5 | E185: 118737.5 | F185: 89612.5 | I185: 135825 | J185: 98025 | K185: 71137.5 | L185: 53150 | N185: 129033.75
A186: 49 | C186: 241112.5 | D186: 174075 | E186: 121400 | F186: 91625 | I186: 139550 | J186: 100725 | K186: 73100 | L186: 54587.5 | N186: 132572.5
A187: 50 | C187: 250075 | D187: 180550 | E187: 125912.5 | F187: 95025 | I187: 143337.5 | J187: 103450 | K187: 75050 | L187: 56037.5 | N187: 136170.625
A188: 51 | C188: 259362.5 | D188: 187262.5 | E188: 130587.5 | F188: 98562.5 | I188: 147037.5 | J188: 106100 | K188: 76975 | L188: 57462.5 | N188: 139685.625
A189: 52 | C189: 269012.5 | D189: 194225 | E189: 135450 | F189: 102225 | I189: 152187.5 | J189: 109800 | K189: 79650 | L189: 59450 | N189: 144578.125
A190: 53 | C190: 279000 | D190: 201437.5 | E190: 140475 | F190: 106025 | I190: 160762.5 | J190: 115975 | K190: 84112.5 | L190: 62787.5 | N190: 152724.375
A191: 54 | C191: 289375 | D191: 208925 | E191: 145700 | F191: 109962.5 | I191: 170950 | J191: 123312.5 | K191: 89387.5 | L191: 66725 | N191: 162402.5
A192: 55 | C192: 300137.5 | D192: 216700 | E192: 151112.5 | F192: 114050 | I192: 179862.5 | J192: 129725 | K192: 94025 | L192: 70162.5 | N192: 170869.375
A193: 56 | C193: 311237.5 | D193: 224712.5 | E193: 156712.5 | F193: 118275 | I193: 187037.5 | J193: 134900 | K193: 97750 | L193: 72925 | N193: 177685.625
A194: 57 | C194: 328337.5 | D194: 237062.5 | E194: 165325 | F194: 124775 | I194: 196137.5 | J194: 141425 | K194: 102500 | L194: 76450 | N194: 186330.625
A195: 58 | C195: 348037.5 | D195: 251287.5 | E195: 175237.5 | F195: 132250 | I195: 210462.5 | J195: 151737.5 | K195: 109950 | L195: 82012.5 | N195: 199939.375
A196: 59 | C196: 368925 | D196: 266362.5 | E196: 185750 | F196: 140187.5 | I196: 225137.5 | J196: 162312.5 | K196: 117562.5 | L196: 87675 | N196: 213880.625
A197: 60 | C197: 392900 | D197: 283675 | E197: 197825 | F197: 149300 | I197: 240162.5 | J197: 173087.5 | K197: 125362.5 | L197: 93487.5 | N197: 228154.375
A198: 61 | C198: 418450 | D198: 302112.5 | E198: 210687.5 | F198: 159012.5 | I198: 255300 | J198: 183987.5 | K198: 133225 | L198: 99337.5 | N198: 242535
A199: 62 | C199: 445650 | D199: 321750 | E199: 224375 | F199: 169350 | I199: 270812.5 | J199: 195150 | K199: 141287.5 | L199: 105325 | N199: 257271.875
A200: 63 | C200: 474612.5 | D200: 342675 | E200: 238962.5 | F200: 180350 | I200: 293600 | J200: 211550 | K200: 153150 | L200: 114125 | N200: 278920
A201: 64 | C201: 505462.5 | D201: 364937.5 | E201: 254500 | F201: 192075 | I201: 319750 | J201: 230337.5 | K201: 166725 | L201: 124237.5 | N201: 303762.5
A202: 65 | C202: 538312.5 | D202: 388662.5 | E202: 271037.5 | F202: 204562.5 | I202: 340462.5 | J202: 245250 | K202: 177475 | L202: 132237.5 | N202: 323439.375
A203: 66 | C203: 573312.5 | D203: 413925 | E203: 288662.5 | F203: 217850 | I203: 361200 | J203: 260175 | K203: 188262.5 | L203: 140262.5 | N203: 343140
... 1352 more rows
